Workbook

Sheet Permanto
A1: Permanto
A2: 0 | B2: Nr | C2: Nimi | D2: Seura | E2: suor | F2: D | G2: E1 | H2: E2 | I2: E3 | J2: E4 | K2: väh | L2: E | M2: Yhteensä
A3: 1 | B3: 102 | C3: Heikki Niva | D3: Espoon Telinetaiturit | L3: =IF(ISBLANK(J3),"",10-(SUM(G3:J3)-MIN(G3:J3)-MAX(G3:J3))/2) ->  | M3: =IF(ISBLANK(J3),0,F3-K3+L3) -> 0
A4: 2 | B4: 103 | C4: Ilkka Kuusela | D4: Espoon Telinetaiturit | L4: =IF(ISBLANK(J4),"",10-(SUM(G4:J4)-MIN(G4:J4)-MAX(G4:J4))/2) ->  | M4: =IF(ISBLANK(J4),0,F4-K4+L4) -> 0
A5: 3 | B5: 104 | C5: Milo Siivonen | D5: Espoon Telinetaiturit | L5: =IF(ISBLANK(J5),"",10-(SUM(G5:J5)-MIN(G5:J5)-MAX(G5:J5))/2) ->  | M5: =IF(ISBLANK(J5),0,F5-K5+L5) -> 0
A6: 4 | B6: 105 | C6: Oskar Kirmes | D6: Espoon Telinetaiturit | M6: 0
A7: 5 | B7: 106 | C7: Henrik Petterson | D7: Helsingfors Gymnastikklubb | M7: 0
A8: 6 | B8: 107 | C8: Artturi Lobski | D8: Jyväskylän Voimistelijat | M8: 0
A9: 7 | B9: 108 | C9: Heikki Saarenketo | D9: Jyväskylän Voimistelijat | M9: 0
A10: 8 | B10: 109 | C10: Janne Haapajoki | D10: Jyväskylän Voimistelijat | M10: 0
A11: 9 | B11: 110 | C11: Jarkko Harju | D11: Jyväskylän Voimistelijat | M11: 0
A12: 10 | B12: 111 | C12: Leevi Aihos | D12: Jyväskylän Voimistelijat | M12: 0
A13: 11 | B13: 112 | C13: Pavel Titov | D13: Jyväskylän Voimistelijat | M13: 0
A14: 12 | B14: 113 | C14: Sakari Vekki | D14: Jyväskylän Voimistelijat | M14: 0
A15: 13 | B15: 114 | C15: Jimi Päivänen | D15: Kotkan Telinevoimistelijat | M15: 0
A16: 14 | B16: 115 | C16: Markku Leinonen | D16: Kotkan Telinevoimistelijat | M16: 0
A17: 15 | B17: 116 | C17: Arttu Kesti | D17: Oulun Pyrintö | M17: 0
A18: 16 | B18: 117 | C18: Konsta Huuki | D18: Oulun Pyrintö | M18: 0
A19: 17 | B19: 118 | C19: Kim Junna | D19: Taipumattomat | M19: 0
A20: 18 | B20: 119 | C20: Mikael Miettinen | D20: Tampereen Sisu | M20: 0
A21: 19 | B21: 120 | C21: Ville Hynninen | D21: Tampereen Sisu | M21: 0
A22: 20 | B22: 121 | C22: Aaron Hotanen | D22: Turun Pyrkivä | M22: 0
A23: 21 | B23: 122 | C23: Oz Ekholm | D23: Turun Pyrkivä | M23: 0
A24: 22 | B24: 123 | C24: Samuel Oporta | D24: Turun Pyrkivä | M24: 0
A25: 23 | B25: 124 | C25: Juho Kanerva | D25: Turun Urheiluliitto | M25: 0
A26: 24 | B26: 125 | C26: Olli Kanerva | D26: Turun Urheiluliitto | M26: 0
A27: 25 | B27: 126 | C27: Sami Aalto | D27: Turun Urheiluliitto | M27: 0
A28: 26 | B28: 127 | C28: Aaro Lamberg | D28: Voimisteluseura Helsinki | M28: 0
A29: 27 | B29: 128 | C29: Jouko Koskinen | D29: Voimisteluseura Helsinki | M29: 0
A30: 28 | B30: 129 | C30: Kasper Holopainen | D30: Voimisteluseura Helsinki | M30: 0
A31: 29 | B31: 130 | C31: Petrus Laulumaa | D31: Voimisteluseura Helsinki | M31: 0
A32: 30 | B32: 131 | C32: Timo Niemelä | D32: Voimisteluseura Helsinki | M32: 0
A33: 31 | B33: 132 | C33: Tomi Tuuha | D33: Voimisteluseura Helsinki | M33: 0
A34: 32 | B34: 133 | C34: Jarkko Pekkanen | D34: Voimisteluseura Keski-Uusimaa | M34: 0

Sheet Hevonen
A1: Hevonen
A2: 0 | B2: Nr | C2: Nimi | D2: Seura | E2: suor | F2: D | G2: E1 | H2: E2 | I2: E3 | J2: E4 | K2: väh | L2: E | M2: Yhteensä
A3: 1 | B3: 102 | C3: Heikki Niva | D3: Espoon Telinetaiturit | L3: =IF(ISBLANK(J3),"",10-(SUM(G3:J3)-MIN(G3:J3)-MAX(G3:J3))/2) ->  | M3: =IF(ISBLANK(J3),0,F3-K3+L3) -> 0
A4: 2 | B4: 103 | C4: Ilkka Kuusela | D4: Espoon Telinetaiturit | L4: =IF(ISBLANK(J4),"",10-(SUM(G4:J4)-MIN(G4:J4)-MAX(G4:J4))/2) ->  | M4: =IF(ISBLANK(J4),0,F4-K4+L4) -> 0
A5: 3 | B5: 104 | C5: Milo Siivonen | D5: Espoon Telinetaiturit | L5: =IF(ISBLANK(J5),"",10-(SUM(G5:J5)-MIN(G5:J5)-MAX(G5:J5))/2) ->  | M5: =IF(ISBLANK(J5),0,F5-K5+L5) -> 0
A6: 4 | B6: 105 | C6: Oskar Kirmes | D6: Espoon Telinetaiturit | M6: 0
A7: 5 | B7: 106 | C7: Henrik Petterson | D7: Helsingfors Gymnastikklubb | M7: 0
A8: 6 | B8: 107 | C8: Artturi Lobski | D8: Jyväskylän Voimistelijat | M8: 0
A9: 7 | B9: 108 | C9: Heikki Saarenketo | D9: Jyväskylän Voimistelijat | M9: 0
A10: 8 | B10: 109 | C10: Janne Haapajoki | D10: Jyväskylän Voimistelijat | M10: 0
A11: 9 | B11: 110 | C11: Jarkko Harju | D11: Jyväskylän Voimistelijat | M11: 0
A12: 10 | B12: 111 | C12: Leevi Aihos | D12: Jyväskylän Voimistelijat | M12: 0
A13: 11 | B13: 112 | C13: Pavel Titov | D13: Jyväskylän Voimistelijat | M13: 0
A14: 12 | B14: 113 | C14: Sakari Vekki | D14: Jyväskylän Voimistelijat | M14: 0
A15: 13 | B15: 114 | C15: Jimi Päivänen | D15: Kotkan Telinevoimistelijat | M15: 0
A16: 14 | B16: 115 | C16: Markku Leinonen | D16: Kotkan Telinevoimistelijat | M16: 0
A17: 15 | B17: 116 | C17: Arttu Kesti | D17: Oulun Pyrintö | M17: 0
A18: 16 | B18: 117 | C18: Konsta Huuki | D18: Oulun Pyrintö | M18: 0
A19: 17 | B19: 118 | C19: Kim Junna | D19: Taipumattomat | M19: 0
A20: 18 | B20: 119 | C20: Mikael Miettinen | D20: Tampereen Sisu | M20: 0
A21: 19 | B21: 120 | C21: Ville Hynninen | D21: Tampereen Sisu | M21: 0
A22: 20 | B22: 121 | C22: Aaron Hotanen | D22: Turun Pyrkivä | M22: 0
A23: 21 | B23: 122 | C23: Oz Ekholm | D23: Turun Pyrkivä | M23: 0
A24: 22 | B24: 123 | C24: Samuel Oporta | D24: Turun Pyrkivä | M24: 0
A25: 23 | B25: 124 | C25: Juho Kanerva | D25: Turun Urheiluliitto | M25: 0
A26: 24 | B26: 125 | C26: Olli Kanerva | D26: Turun Urheiluliitto | M26: 0
A27: 25 | B27: 126 | C27: Sami Aalto | D27: Turun Urheiluliitto | M27: 0
A28: 26 | B28: 127 | C28: Aaro Lamberg | D28: Voimisteluseura Helsinki | M28: 0
A29: 27 | B29: 128 | C29: Jouko Koskinen | D29: Voimisteluseura Helsinki | M29: 0
A30: 28 | B30: 129 | C30: Kasper Holopainen | D30: Voimisteluseura Helsinki | M30: 0
A31: 29 | B31: 130 | C31: Petrus Laulumaa | D31: Voimisteluseura Helsinki | M31: 0
A32: 30 | B32: 131 | C32: Timo Niemelä | D32: Voimisteluseura Helsinki | M32: 0
A33: 31 | B33: 132 | C33: Tomi Tuuha | D33: Voimisteluseura Helsinki | M33: 0
A34: 32 | B34: 133 | C34: Jarkko Pekkanen | D34: Voimisteluseura Keski-Uusimaa | M34: 0

Sheet Renkaat
A1: Renkaat
A2: 0 | B2: Nr | C2: Nimi | D2: Seura | E2: suor | F2: D | G2: E1 | H2: E2 | I2: E3 | J2: E4 | K2: väh | L2: E | M2: Yhteensä
A3: 1 | B3: 102 | C3: Heikki Niva | D3: Espoon Telinetaiturit | L3: =IF(ISBLANK(J3),"",10-(SUM(G3:J3)-MIN(G3:J3)-MAX(G3:J3))/2) ->  | M3: =IF(ISBLANK(J3),0,F3-K3+L3) -> 0
A4: 2 | B4: 103 | C4: Ilkka Kuusela | D4: Espoon Telinetaiturit | L4: =IF(ISBLANK(J4),"",10-(SUM(G4:J4)-MIN(G4:J4)-MAX(G4:J4))/2) ->  | M4: =IF(ISBLANK(J4),0,F4-K4+L4) -> 0
A5: 3 | B5: 104 | C5: Milo Siivonen | D5: Espoon Telinetaiturit | L5: =IF(ISBLANK(J5),"",10-(SUM(G5:J5)-MIN(G5:J5)-MAX(G5:J5))/2) ->  | M5: =IF(ISBLANK(J5),0,F5-K5+L5) -> 0
A6: 4 | B6: 105 | C6: Oskar Kirmes | D6: Espoon Telinetaiturit | M6: 0
A7: 5 | B7: 106 | C7: Henrik Petterson | D7: Helsingfors Gymnastikklubb | M7: 0
A8: 6 | B8: 107 | C8: Artturi Lobski | D8: Jyväskylän Voimistelijat | M8: 0
A9: 7 | B9: 108 | C9: Heikki Saarenketo | D9: Jyväskylän Voimistelijat | M9: 0
A10: 8 | B10: 109 | C10: Janne Haapajoki | D10: Jyväskylän Voimistelijat | M10: 0
A11: 9 | B11: 110 | C11: Jarkko Harju | D11: Jyväskylän Voimistelijat | M11: 0
A12: 10 | B12: 111 | C12: Leevi Aihos | D12: Jyväskylän Voimistelijat | M12: 0
A13: 11 | B13: 112 | C13: Pavel Titov | D13: Jyväskylän Voimistelijat | M13: 0
A14: 12 | B14: 113 | C14: Sakari Vekki | D14: Jyväskylän Voimistelijat | M14: 0
A15: 13 | B15: 114 | C15: Jimi Päivänen | D15: Kotkan Telinevoimistelijat | M15: 0
A16: 14 | B16: 115 | C16: Markku Leinonen | D16: Kotkan Telinevoimistelijat | M16: 0
A17: 15 | B17: 116 | C17: Arttu Kesti | D17: Oulun Pyrintö | M17: 0
A18: 16 | B18: 117 | C18: Konsta Huuki | D18: Oulun Pyrintö | M18: 0
A19: 17 | B19: 118 | C19: Kim Junna | D19: Taipumattomat | M19: 0
A20: 18 | B20: 119 | C20: Mikael Miettinen | D20: Tampereen Sisu | M20: 0
A21: 19 | B21: 120 | C21: Ville Hynninen | D21: Tampereen Sisu | M21: 0
A22: 20 | B22: 121 | C22: Aaron Hotanen | D22: Turun Pyrkivä | M22: 0
A23: 21 | B23: 122 | C23: Oz Ekholm | D23: Turun Pyrkivä | M23: 0
A24: 22 | B24: 123 | C24: Samuel Oporta | D24: Turun Pyrkivä | M24: 0
A25: 23 | B25: 124 | C25: Juho Kanerva | D25: Turun Urheiluliitto | M25: 0
A26: 24 | B26: 125 | C26: Olli Kanerva | D26: Turun Urheiluliitto | M26: 0
A27: 25 | B27: 126 | C27: Sami Aalto | D27: Turun Urheiluliitto | M27: 0
A28: 26 | B28: 127 | C28: Aaro Lamberg | D28: Voimisteluseura Helsinki | M28: 0
A29: 27 | B29: 128 | C29: Jouko Koskinen | D29: Voimisteluseura Helsinki | M29: 0
A30: 28 | B30: 129 | C30: Kasper Holopainen | D30: Voimisteluseura Helsinki | M30: 0
A31: 29 | B31: 130 | C31: Petrus Laulumaa | D31: Voimisteluseura Helsinki | M31: 0
A32: 30 | B32: 131 | C32: Timo Niemelä | D32: Voimisteluseura Helsinki | M32: 0
A33: 31 | B33: 132 | C33: Tomi Tuuha | D33: Voimisteluseura Helsinki | M33: 0
A34: 32 | B34: 133 | C34: Jarkko Pekkanen | D34: Voimisteluseura Keski-Uusimaa | M34: 0

Sheet Hyppy
A1: Hyppy | F1: 1 | O1: 2
A2: 0 | B2: Nr | C2: Nimi | D2: Seura | E2: suor | F2: D | G2: E1 | H2: E2 | I2: E3 | J2: E4 | K2: väh | L2: E | M2: Yhteensä | O2: D | P2: E1 | Q2: E2 | R2: E3 | S2: E4 | T2: väh | U2: E | V2: Yhteensä | W2: Tulos
A3: 1 | B3: 102 | C3: Heikki Niva | D3: Espoon Telinetaiturit | L3: =IF(ISBLANK(J3),"",10-(SUM(G3:J3)-MIN(G3:J3)-MAX(G3:J3))/2) ->  | M3: =IF(ISBLANK(J3),0,F3-K3+L3) -> 0 | U3: =IF(ISBLANK(S3),"",10-(SUM(P3:S3)-MIN(P3:S3)-MAX(P3:S3))/2) ->  | V3: =IF(ISBLANK(S3),0,O3-T3+U3) -> 0 | W3: =IF(ISBLANK(S3),"",(M3+V3)/2) -> 
A4: 2 | B4: 103 | C4: Ilkka Kuusela | D4: Espoon Telinetaiturit | L4: =IF(ISBLANK(J4),"",10-(SUM(G4:J4)-MIN(G4:J4)-MAX(G4:J4))/2) ->  | M4: =IF(ISBLANK(J4),0,F4-K4+L4) -> 0 | U4: =IF(ISBLANK(S4),"",10-(SUM(P4:S4)-MIN(P4:S4)-MAX(P4:S4))/2) ->  | V4: =IF(ISBLANK(S4),0,O4-T4+U4) -> 0 | W4: =IF(ISBLANK(S4),"",(M4+V4)/2) -> 
A5: 3 | B5: 104 | C5: Milo Siivonen | D5: Espoon Telinetaiturit | L5: =IF(ISBLANK(J5),"",10-(SUM(G5:J5)-MIN(G5:J5)-MAX(G5:J5))/2) ->  | M5: =IF(ISBLANK(J5),0,F5-K5+L5) -> 0 | U5: =IF(ISBLANK(S5),"",10-(SUM(P5:S5)-MIN(P5:S5)-MAX(P5:S5))/2) ->  | V5: =IF(ISBLANK(S5),0,O5-T5+U5) -> 0
A6: 4 | B6: 105 | C6: Oskar Kirmes | D6: Espoon Telinetaiturit | M6: 0 | V6: 0
A7: 5 | B7: 106 | C7: Henrik Petterson | D7: Helsingfors Gymnastikklubb | M7: 0 | V7: 0
A8: 6 | B8: 107 | C8: Artturi Lobski | D8: Jyväskylän Voimistelijat | M8: 0 | V8: 0
A9: 7 | B9: 108 | C9: Heikki Saarenketo | D9: Jyväskylän Voimistelijat | M9: 0 | V9: 0
A10: 8 | B10: 109 | C10: Janne Haapajoki | D10: Jyväskylän Voimistelijat | M10: 0 | V10: 0
A11: 9 | B11: 110 | C11: Jarkko Harju | D11: Jyväskylän Voimistelijat | M11: 0 | V11: 0
A12: 10 | B12: 111 | C12: Leevi Aihos | D12: Jyväskylän Voimistelijat | M12: 0 | V12: 0
A13: 11 | B13: 112 | C13: Pavel Titov | D13: Jyväskylän Voimistelijat | M13: 0 | V13: 0
A14: 12 | B14: 113 | C14: Sakari Vekki | D14: Jyväskylän Voimistelijat | M14: 0 | V14: 0
A15: 13 | B15: 114 | C15: Jimi Päivänen | D15: Kotkan Telinevoimistelijat | M15: 0 | V15: 0
A16: 14 | B16: 115 | C16: Markku Leinonen | D16: Kotkan Telinevoimistelijat | M16: 0 | V16: 0
A17: 15 | B17: 116 | C17: Arttu Kesti | D17: Oulun Pyrintö | M17: 0 | V17: 0
A18: 16 | B18: 117 | C18: Konsta Huuki | D18: Oulun Pyrintö | M18: 0 | V18: 0
A19: 17 | B19: 118 | C19: Kim Junna | D19: Taipumattomat | M19: 0 | V19: 0
A20: 18 | B20: 119 | C20: Mikael Miettinen | D20: Tampereen Sisu | M20: 0 | V20: 0
A21: 19 | B21: 120 | C21: Ville Hynninen | D21: Tampereen Sisu | M21: 0 | V21: 0
A22: 20 | B22: 121 | C22: Aaron Hotanen | D22: Turun Pyrkivä | M22: 0 | V22: 0
A23: 21 | B23: 122 | C23: Oz Ekholm | D23: Turun Pyrkivä | M23: 0 | V23: 0
A24: 22 | B24: 123 | C24: Samuel Oporta | D24: Turun Pyrkivä | M24: 0 | V24: 0
A25: 23 | B25: 124 | C25: Juho Kanerva | D25: Turun Urheiluliitto | M25: 0 | V25: 0
A26: 24 | B26: 125 | C26: Olli Kanerva | D26: Turun Urheiluliitto | M26: 0 | V26: 0
A27: 25 | B27: 126 | C27: Sami Aalto | D27: Turun Urheiluliitto | M27: 0 | V27: 0
A28: 26 | B28: 127 | C28: Aaro Lamberg | D28: Voimisteluseura Helsinki | M28: 0 | V28: 0
A29: 27 | B29: 128 | C29: Jouko Koskinen | D29: Voimisteluseura Helsinki | M29: 0 | V29: 0
A30: 28 | B30: 129 | C30: Kasper Holopainen | D30: Voimisteluseura Helsinki | M30: 0 | V30: 0
A31: 29 | B31: 130 | C31: Petrus Laulumaa | D31: Voimisteluseura Helsinki | M31: 0 | V31: 0
A32: 30 | B32: 131 | C32: Timo Niemelä | D32: Voimisteluseura Helsinki | M32: 0 | V32: 0
A33: 31 | B33: 132 | C33: Tomi Tuuha | D33: Voimisteluseura Helsinki | M33: 0 | V33: 0
A34: 32 | B34: 133 | C34: Jarkko Pekkanen | D34: Voimisteluseura Keski-Uusimaa | M34: 0 | V34: 0

Sheet Nojapuut
A1: Nojapuut
A2: 0 | B2: Nr | C2: Nimi | D2: Seura | E2: suor | F2: D | G2: E1 | H2: E2 | I2: E3 | J2: E4 | K2: väh | L2: E | M2: Yhteensä
A3: 1 | B3: 102 | C3: Heikki Niva | D3: Espoon Telinetaiturit | L3: =IF(ISBLANK(J3),"",10-(SUM(G3:J3)-MIN(G3:J3)-MAX(G3:J3))/2) ->  | M3: =IF(ISBLANK(J3),0,F3-K3+L3) -> 0
A4: 2 | B4: 103 | C4: Ilkka Kuusela | D4: Espoon Telinetaiturit | L4: =IF(ISBLANK(J4),"",10-(SUM(G4:J4)-MIN(G4:J4)-MAX(G4:J4))/2) ->  | M4: =IF(ISBLANK(J4),0,F4-K4+L4) -> 0
A5: 3 | B5: 104 | C5: Milo Siivonen | D5: Espoon Telinetaiturit | L5: =IF(ISBLANK(J5),"",10-(SUM(G5:J5)-MIN(G5:J5)-MAX(G5:J5))/2) ->  | M5: =IF(ISBLANK(J5),0,F5-K5+L5) -> 0
A6: 4 | B6: 105 | C6: Oskar Kirmes | D6: Espoon Telinetaiturit | M6: 0
A7: 5 | B7: 106 | C7: Henrik Petterson | D7: Helsingfors Gymnastikklubb | M7: 0
A8: 6 | B8: 107 | C8: Artturi Lobski | D8: Jyväskylän Voimistelijat | M8: 0
A9: 7 | B9: 108 | C9: Heikki Saarenketo | D9: Jyväskylän Voimistelijat | M9: 0
A10: 8 | B10: 109 | C10: Janne Haapajoki | D10: Jyväskylän Voimistelijat | M10: 0
A11: 9 | B11: 110 | C11: Jarkko Harju | D11: Jyväskylän Voimistelijat | M11: 0
A12: 10 | B12: 111 | C12: Leevi Aihos | D12: Jyväskylän Voimistelijat | M12: 0
A13: 11 | B13: 112 | C13: Pavel Titov | D13: Jyväskylän Voimistelijat | M13: 0
A14: 12 | B14: 113 | C14: Sakari Vekki | D14: Jyväskylän Voimistelijat | M14: 0
A15: 13 | B15: 114 | C15: Jimi Päivänen | D15: Kotkan Telinevoimistelijat | M15: 0
A16: 14 | B16: 115 | C16: Markku Leinonen | D16: Kotkan Telinevoimistelijat | M16: 0
A17: 15 | B17: 116 | C17: Arttu Kesti | D17: Oulun Pyrintö | M17: 0
A18: 16 | B18: 117 | C18: Konsta Huuki | D18: Oulun Pyrintö | M18: 0
A19: 17 | B19: 118 | C19: Kim Junna | D19: Taipumattomat | M19: 0
A20: 18 | B20: 119 | C20: Mikael Miettinen | D20: Tampereen Sisu | M20: 0
A21: 19 | B21: 120 | C21: Ville Hynninen | D21: Tampereen Sisu | M21: 0
A22: 20 | B22: 121 | C22: Aaron Hotanen | D22: Turun Pyrkivä | M22: 0
A23: 21 | B23: 122 | C23: Oz Ekholm | D23: Turun Pyrkivä | M23: 0
A24: 22 | B24: 123 | C24: Samuel Oporta | D24: Turun Pyrkivä | M24: 0
A25: 23 | B25: 124 | C25: Juho Kanerva | D25: Turun Urheiluliitto | M25: 0
A26: 24 | B26: 125 | C26: Olli Kanerva | D26: Turun Urheiluliitto | M26: 0
A27: 25 | B27: 126 | C27: Sami Aalto | D27: Turun Urheiluliitto | M27: 0
A28: 26 | B28: 127 | C28: Aaro Lamberg | D28: Voimisteluseura Helsinki | M28: 0
A29: 27 | B29: 128 | C29: Jouko Koskinen | D29: Voimisteluseura Helsinki | M29: 0
A30: 28 | B30: 129 | C30: Kasper Holopainen | D30: Voimisteluseura Helsinki | M30: 0
A31: 29 | B31: 130 | C31: Petrus Laulumaa | D31: Voimisteluseura Helsinki | M31: 0
A32: 30 | B32: 131 | C32: Timo Niemelä | D32: Voimisteluseura Helsinki | M32: 0
A33: 31 | B33: 132 | C33: Tomi Tuuha | D33: Voimisteluseura Helsinki | M33: 0
A34: 32 | B34: 133 | C34: Jarkko Pekkanen | D34: Voimisteluseura Keski-Uusimaa | M34: 0

Sheet Rekki
A1: Rekki
A2: 0 | B2: Nr | C2: Nimi | D2: Seura | E2: suor | F2: D | G2: E1 | H2: E2 | I2: E3 | J2: E4 | K2: väh | L2: E | M2: Yhteensä
A3: 1 | B3: 102 | C3: Heikki Niva | D3: Espoon Telinetaiturit | L3: =IF(ISBLANK(J3),"",10-(SUM(G3:J3)-MIN(G3:J3)-MAX(G3:J3))/2) ->  | M3: =IF(ISBLANK(J3),0,F3-K3+L3) -> 0
A4: 2 | B4: 103 | C4: Ilkka Kuusela | D4: Espoon Telinetaiturit | L4: =IF(ISBLANK(J4),"",10-(SUM(G4:J4)-MIN(G4:J4)-MAX(G4:J4))/2) ->  | M4: =IF(ISBLANK(J4),0,F4-K4+L4) -> 0
A5: 3 | B5: 104 | C5: Milo Siivonen | D5: Espoon Telinetaiturit | L5: =IF(ISBLANK(J5),"",10-(SUM(G5:J5)-MIN(G5:J5)-MAX(G5:J5))/2) ->  | M5: =IF(ISBLANK(J5),0,F5-K5+L5) -> 0
A6: 4 | B6: 105 | C6: Oskar Kirmes | D6: Espoon Telinetaiturit | M6: 0
A7: 5 | B7: 106 | C7: Henrik Petterson | D7: Helsingfors Gymnastikklubb | M7: 0
A8: 6 | B8: 107 | C8: Artturi Lobski | D8: Jyväskylän Voimistelijat | M8: 0
A9: 7 | B9: 108 | C9: Heikki Saarenketo | D9: Jyväskylän Voimistelijat | M9: 0
A10: 8 | B10: 109 | C10: Janne Haapajoki | D10: Jyväskylän Voimistelijat | M10: 0
A11: 9 | B11: 110 | C11: Jarkko Harju | D11: Jyväskylän Voimistelijat | M11: 0
A12: 10 | B12: 111 | C12: Leevi Aihos | D12: Jyväskylän Voimistelijat | M12: 0
A13: 11 | B13: 112 | C13: Pavel Titov | D13: Jyväskylän Voimistelijat | M13: 0
A14: 12 | B14: 113 | C14: Sakari Vekki | D14: Jyväskylän Voimistelijat | M14: 0
A15: 13 | B15: 114 | C15: Jimi Päivänen | D15: Kotkan Telinevoimistelijat | M15: 0
A16: 14 | B16: 115 | C16: Markku Leinonen | D16: Kotkan Telinevoimistelijat | M16: 0
A17: 15 | B17: 116 | C17: Arttu Kesti | D17: Oulun Pyrintö | M17: 0
A18: 16 | B18: 117 | C18: Konsta Huuki | D18: Oulun Pyrintö | M18: 0
A19: 17 | B19: 118 | C19: Kim Junna | D19: Taipumattomat | M19: 0
A20: 18 | B20: 119 | C20: Mikael Miettinen | D20: Tampereen Sisu | M20: 0
A21: 19 | B21: 120 | C21: Ville Hynninen | D21: Tampereen Sisu | M21: 0
A22: 20 | B22: 121 | C22: Aaron Hotanen | D22: Turun Pyrkivä | M22: 0
A23: 21 | B23: 122 | C23: Oz Ekholm | D23: Turun Pyrkivä | M23: 0
A24: 22 | B24: 123 | C24: Samuel Oporta | D24: Turun Pyrkivä | M24: 0
A25: 23 | B25: 124 | C25: Juho Kanerva | D25: Turun Urheiluliitto | M25: 0
A26: 24 | B26: 125 | C26: Olli Kanerva | D26: Turun Urheiluliitto | M26: 0
A27: 25 | B27: 126 | C27: Sami Aalto | D27: Turun Urheiluliitto | M27: 0
A28: 26 | B28: 127 | C28: Aaro Lamberg | D28: Voimisteluseura Helsinki | M28: 0
A29: 27 | B29: 128 | C29: Jouko Koskinen | D29: Voimisteluseura Helsinki | M29: 0
A30: 28 | B30: 129 | C30: Kasper Holopainen | D30: Voimisteluseura Helsinki | M30: 0
A31: 29 | B31: 130 | C31: Petrus Laulumaa | D31: Voimisteluseura Helsinki | M31: 0
A32: 30 | B32: 131 | C32: Timo Niemelä | D32: Voimisteluseura Helsinki | M32: 0
A33: 31 | B33: 132 | C33: Tomi Tuuha | D33: Voimisteluseura Helsinki | M33: 0
A34: 32 | B34: 133 | C34: Jarkko Pekkanen | D34: Voimisteluseura Keski-Uusimaa | M34: 0

Sheet Tulokset
A1: 1 | C1: =IF(B1="","",VLOOKUP(B1,B5:Q36,2,FALSE)) ->  | E1: =IF($B1="","",VLOOKUP($B1,$B$5:$Q$36,($A1-1)*2+4,FALSE)) ->  | G1: =IF($B1="","",VLOOKUP($B1,$B$5:$Q$36,($A1-1)*2+5,FALSE)) ->  | P1: =IF($B1="","",VLOOKUP($B1,$B$5:$Q$36,16,FALSE)) -> 
A2: 6 | C2: =IF(B2="","",VLOOKUP(B2,B5:Q36,2,FALSE)) ->  | E2: =IF($B2="","",VLOOKUP($B2,$B$5:$Q$36,($A2-1)*2+4,FALSE)) ->  | G2: =IF($B2="","",VLOOKUP($B2,$B$5:$Q$36,($A2-1)*2+5,FALSE)) ->  | P2: =IF($B2="","",VLOOKUP($B2,$B$5:$Q$36,16,FALSE)) -> 
A3: Miesten 6-ottelu | E3: Permanto | F3: =Permanto!$M$1 ->  | G3: Hevonen | H3: =Hevonen!$M$1 ->  | I3: Renkaat | J3: =Renkaat!$M$1 ->  | K3: Hyppy | L3: =Hyppy!$M$1 ->  | M3: Nojapuut | N3: =Nojapuut!$M$1 ->  | O3: Rekki | P3: =Rekki!$M$1 ->  | R3: ero
A4: 0 | B4: Nr | C4: Nimi | D4: Seura | E4: D | F4: yht | G4: D | H4: yht | I4: D | J4: yht | K4: D | L4: yht | M4: D | N4: yht | O4: D | P4: yht | Q4: Yhteensä | R4: kärkeen
A5: =A4+1 -> 1 | B5: 104 | C5: Milo Siivonen | D5: EsTT | E5: =Permanto!$F$5 -> 0 | F5: =Permanto!$M$5 -> 0 | G5: =Hevonen!$F$5 -> 0 | H5: =Hevonen!$M$5 -> 0 | I5: =Renkaat!$F$5 -> 0 | J5: =Renkaat!$M$5 -> 0 | K5: =Hyppy!$F$5 -> 0 | L5: =Hyppy!$M$5 -> 0 | M5: =Nojapuut!$F$5 -> 0 | N5: =Nojapuut!$M$5 -> 0 | O5: =Rekki!$F$5 -> 0 | P5: =Rekki!$M$5 -> 0 | Q5: =P5+N5+L5+J5+H5+F5 -> 0 | R5: =Q5-$Q$5 -> 0
A6: =A5+1 -> 2 | B6: 103 | C6: Ilkka Kuusela | D6: EsTT | E6: =Permanto!$F$4 -> 0 | F6: =Permanto!$M$4 -> 0 | G6: =Hevonen!$F$4 -> 0 | H6: =Hevonen!$M$4 -> 0 | I6: =Renkaat!$F$4 -> 0 | J6: =Renkaat!$M$4 -> 0 | K6: =Hyppy!$F$4 -> 0 | L6: =Hyppy!$M$4 -> 0 | M6: =Nojapuut!$F$4 -> 0 | N6: =Nojapuut!$M$4 -> 0 | O6: =Rekki!$F$4 -> 0 | P6: =Rekki!$M$4 -> 0 | Q6: =P6+N6+L6+J6+H6+F6 -> 0 | R6: 0 | S6: =IF((Q6=Q5),IF((Q6=0),"","tie"),"") -> 
A7: =A6+1 -> 3 | B7: 102 | C7: Heikki Niva | D7: EsTT | E7: =Permanto!$F$3 -> 0 | F7: =Permanto!$M$3 -> 0 | G7: =Hevonen!$F$3 -> 0 | H7: =Hevonen!$M$3 -> 0 | I7: =Renkaat!$F$3 -> 0 | J7: =Renkaat!$M$3 -> 0 | K7: =Hyppy!$F$3 -> 0 | L7: =Hyppy!$M$3 -> 0 | M7: =Nojapuut!$F$3 -> 0 | N7: =Nojapuut!$M$3 -> 0 | O7: =Rekki!$F$3 -> 0 | P7: =Rekki!$M$3 -> 0 | Q7: =P7+N7+L7+J7+H7+F7 -> 0 | R7: 0
A8: =A7+1 -> 4 | B8: 105 | C8: Oskar Kirmes | D8: EsTT | E8: =Permanto!$F$6 -> 0 | F8: =Permanto!$M$6 -> 0 | G8: =Hevonen!$F$6 -> 0 | H8: =Hevonen!$M$6 -> 0 | I8: =Renkaat!$F$6 -> 0 | J8: =Renkaat!$M$6 -> 0 | K8: =Hyppy!$F$6 -> 0 | L8: =Hyppy!$M$6 -> 0 | M8: =Nojapuut!$F$6 -> 0 | N8: =Nojapuut!$M$6 -> 0 | O8: =Rekki!$F$6 -> 0 | P8: =Rekki!$M$6 -> 0 | Q8: =P8+N8+L8+J8+H8+F8 -> 0 | R8: 0
A9: =A8+1 -> 5 | B9: 106 | C9: Henrik Petterson | D9: HGK | E9: =Permanto!$F$7 -> 0 | F9: =Permanto!$M$7 -> 0 | G9: =Hevonen!$F$7 -> 0 | H9: =Hevonen!$M$7 -> 0 | I9: =Renkaat!$F$7 -> 0 | J9: =Renkaat!$M$7 -> 0 | K9: =Hyppy!$F$7 -> 0 | L9: =Hyppy!$M$7 -> 0 | M9: =Nojapuut!$F$7 -> 0 | N9: =Nojapuut!$M$7 -> 0 | O9: =Rekki!$F$7 -> 0 | P9: =Rekki!$M$7 -> 0 | Q9: =P9+N9+L9+J9+H9+F9 -> 0 | R9: 0
A10: =A9+1 -> 6 | B10: 107 | C10: Artturi Lobski | D10: JyVo | E10: =Permanto!$F$8 -> 0 | F10: =Permanto!$M$8 -> 0 | G10: =Hevonen!$F$8 -> 0 | H10: =Hevonen!$M$8 -> 0 | I10: =Renkaat!$F$8 -> 0 | J10: =Renkaat!$M$8 -> 0 | K10: =Hyppy!$F$8 -> 0 | L10: =Hyppy!$M$8 -> 0 | M10: =Nojapuut!$F$8 -> 0 | N10: =Nojapuut!$M$8 -> 0 | O10: =Rekki!$F$8 -> 0 | P10: =Rekki!$M$8 -> 0 | Q10: =P10+N10+L10+J10+H10+F10 -> 0 | R10: 0
A11: =A10+1 -> 7 | B11: 108 | C11: Heikki Saarenketo | D11: JyVo | E11: =Permanto!$F$9 -> 0 | F11: =Permanto!$M$9 -> 0 | G11: =Hevonen!$F$9 -> 0 | H11: =Hevonen!$M$9 -> 0 | I11: =Renkaat!$F$9 -> 0 | J11: =Renkaat!$M$9 -> 0 | K11: =Hyppy!$F$9 -> 0 | L11: =Hyppy!$M$9 -> 0 | M11: =Nojapuut!$F$9 -> 0 | N11: =Nojapuut!$M$9 -> 0 | O11: =Rekki!$F$9 -> 0 | P11: =Rekki!$M$9 -> 0 | Q11: =P11+N11+L11+J11+H11+F11 -> 0 | R11: 0
A12: =A11+1 -> 8 | B12: 109 | C12: Janne Haapajoki | D12: JyVo | E12: =Permanto!$F$10 -> 0 | F12: =Permanto!$M$10 -> 0 | G12: =Hevonen!$F$10 -> 0 | H12: =Hevonen!$M$10 -> 0 | I12: =Renkaat!$F$10 -> 0 | J12: =Renkaat!$M$10 -> 0 | K12: =Hyppy!$F$10 -> 0 | L12: =Hyppy!$M$10 -> 0 | M12: =Nojapuut!$F$10 -> 0 | N12: =Nojapuut!$M$10 -> 0 | O12: =Rekki!$F$10 -> 0 | P12: =Rekki!$M$10 -> 0 | Q12: =P12+N12+L12+J12+H12+F12 -> 0 | R12: 0
A13: =A12+1 -> 9 | B13: 110 | C13: Jarkko Harju | D13: JyVo | E13: =Permanto!$F$11 -> 0 | F13: =Permanto!$M$11 -> 0 | G13: =Hevonen!$F$11 -> 0 | H13: =Hevonen!$M$11 -> 0 | I13: =Renkaat!$F$11 -> 0 | J13: =Renkaat!$M$11 -> 0 | K13: =Hyppy!$F$11 -> 0 | L13: =Hyppy!$M$11 -> 0 | M13: =Nojapuut!$F$11 -> 0 | N13: =Nojapuut!$M$11 -> 0 | O13: =Rekki!$F$11 -> 0 | P13: =Rekki!$M$11 -> 0 | Q13: =P13+N13+L13+J13+H13+F13 -> 0 | R13: 0
A14: =A13+1 -> 10 | B14: 111 | C14: Leevi Aihos | D14: JyVo | E14: =Permanto!$F$12 -> 0 | F14: =Permanto!$M$12 -> 0 | G14: =Hevonen!$F$12 -> 0 | H14: =Hevonen!$M$12 -> 0 | I14: =Renkaat!$F$12 -> 0 | J14: =Renkaat!$M$12 -> 0 | K14: =Hyppy!$F$12 -> 0 | L14: =Hyppy!$M$12 -> 0 | M14: =Nojapuut!$F$12 -> 0 | N14: =Nojapuut!$M$12 -> 0 | O14: =Rekki!$F$12 -> 0 | P14: =Rekki!$M$12 -> 0 | Q14: =P14+N14+L14+J14+H14+F14 -> 0 | R14: 0
A15: =A14+1 -> 11 | B15: 112 | C15: Pavel Titov | D15: JyVo | E15: =Permanto!$F$13 -> 0 | F15: =Permanto!$M$13 -> 0 | G15: =Hevonen!$F$13 -> 0 | H15: =Hevonen!$M$13 -> 0 | I15: =Renkaat!$F$13 -> 0 | J15: =Renkaat!$M$13 -> 0 | K15: =Hyppy!$F$13 -> 0 | L15: =Hyppy!$M$13 -> 0 | M15: =Nojapuut!$F$13 -> 0 | N15: =Nojapuut!$M$13 -> 0 | O15: =Rekki!$F$13 -> 0 | P15: =Rekki!$M$13 -> 0 | Q15: =P15+N15+L15+J15+H15+F15 -> 0 | R15: 0
A16: =A15+1 -> 12 | B16: 113 | C16: Sakari Vekki | D16: JyVo | E16: =Permanto!$F$14 -> 0 | F16: =Permanto!$M$14 -> 0 | G16: =Hevonen!$F$14 -> 0 | H16: =Hevonen!$M$14 -> 0 | I16: =Renkaat!$F$14 -> 0 | J16: =Renkaat!$M$14 -> 0 | K16: =Hyppy!$F$14 -> 0 | L16: =Hyppy!$M$14 -> 0 | M16: =Nojapuut!$F$14 -> 0 | N16: =Nojapuut!$M$14 -> 0 | O16: =Rekki!$F$14 -> 0 | P16: =Rekki!$M$14 -> 0 | Q16: =P16+N16+L16+J16+H16+F16 -> 0 | R16: 0
A17: =A16+1 -> 13 | B17: 114 | C17: Jimi Päivänen | D17: KOTEVO | E17: =Permanto!$F$15 -> 0 | F17: =Permanto!$M$15 -> 0 | G17: =Hevonen!$F$15 -> 0 | H17: =Hevonen!$M$15 -> 0 | I17: =Renkaat!$F$15 -> 0 | J17: =Renkaat!$M$15 -> 0 | K17: =Hyppy!$F$15 -> 0 | L17: =Hyppy!$M$15 -> 0 | M17: =Nojapuut!$F$15 -> 0 | N17: =Nojapuut!$M$15 -> 0 | O17: =Rekki!$F$15 -> 0 | P17: =Rekki!$M$15 -> 0 | Q17: =P17+N17+L17+J17+H17+F17 -> 0 | R17: 0
A18: =A17+1 -> 14 | B18: 115 | C18: Markku Leinonen | D18: KOTEVO | E18: =Permanto!$F$16 -> 0 | F18: =Permanto!$M$16 -> 0 | G18: =Hevonen!$F$16 -> 0 | H18: =Hevonen!$M$16 -> 0 | I18: =Renkaat!$F$16 -> 0 | J18: =Renkaat!$M$16 -> 0 | K18: =Hyppy!$F$16 -> 0 | L18: =Hyppy!$M$16 -> 0 | M18: =Nojapuut!$F$16 -> 0 | N18: =Nojapuut!$M$16 -> 0 | O18: =Rekki!$F$16 -> 0 | P18: =Rekki!$M$16 -> 0 | Q18: =P18+N18+L18+J18+H18+F18 -> 0 | R18: 0
A19: =A18+1 -> 15 | B19: 116 | C19: Arttu Kesti | D19: OP | E19: =Permanto!$F$17 -> 0 | F19: =Permanto!$M$17 -> 0 | G19: =Hevonen!$F$17 -> 0 | H19: =Hevonen!$M$17 -> 0 | I19: =Renkaat!$F$17 -> 0 | J19: =Renkaat!$M$17 -> 0 | K19: =Hyppy!$F$17 -> 0 | L19: =Hyppy!$M$17 -> 0 | M19: =Nojapuut!$F$17 -> 0 | N19: =Nojapuut!$M$17 -> 0 | O19: =Rekki!$F$17 -> 0 | P19: =Rekki!$M$17 -> 0 | Q19: =P19+N19+L19+J19+H19+F19 -> 0 | R19: 0
A20: =A19+1 -> 16 | B20: 117 | C20: Konsta Huuki | D20: OP | E20: =Permanto!$F$18 -> 0 | F20: =Permanto!$M$18 -> 0 | G20: =Hevonen!$F$18 -> 0 | H20: =Hevonen!$M$18 -> 0 | I20: =Renkaat!$F$18 -> 0 | J20: =Renkaat!$M$18 -> 0 | K20: =Hyppy!$F$18 -> 0 | L20: =Hyppy!$M$18 -> 0 | M20: =Nojapuut!$F$18 -> 0 | N20: =Nojapuut!$M$18 -> 0 | O20: =Rekki!$F$18 -> 0 | P20: =Rekki!$M$18 -> 0 | Q20: =P20+N20+L20+J20+H20+F20 -> 0 | R20: 0
A21: =A20+1 -> 17 | B21: 118 | C21: Kim Junna | D21: Taip | E21: =Permanto!$F$19 -> 0 | F21: =Permanto!$M$19 -> 0 | G21: =Hevonen!$F$19 -> 0 | H21: =Hevonen!$M$19 -> 0 | I21: =Renkaat!$F$19 -> 0 | J21: =Renkaat!$M$19 -> 0 | K21: =Hyppy!$F$19 -> 0 | L21: =Hyppy!$M$19 -> 0 | M21: =Nojapuut!$F$19 -> 0 | N21: =Nojapuut!$M$19 -> 0 | O21: =Rekki!$F$19 -> 0 | P21: =Rekki!$M$19 -> 0 | Q21: =P21+N21+L21+J21+H21+F21 -> 0 | R21: 0
A22: =A21+1 -> 18 | B22: 119 | C22: Mikael Miettinen | D22: TaSi | E22: =Permanto!$F$20 -> 0 | F22: =Permanto!$M$20 -> 0 | G22: =Hevonen!$F$20 -> 0 | H22: =Hevonen!$M$20 -> 0 | I22: =Renkaat!$F$20 -> 0 | J22: =Renkaat!$M$20 -> 0 | K22: =Hyppy!$F$20 -> 0 | L22: =Hyppy!$M$20 -> 0 | M22: =Nojapuut!$F$20 -> 0 | N22: =Nojapuut!$M$20 -> 0 | O22: =Rekki!$F$20 -> 0 | P22: =Rekki!$M$20 -> 0 | Q22: =P22+N22+L22+J22+H22+F22 -> 0 | R22: 0
A23: =A22+1 -> 19 | B23: 120 | C23: Ville Hynninen | D23: TaSi | E23: =Permanto!$F$21 -> 0 | F23: =Permanto!$M$21 -> 0 | G23: =Hevonen!$F$21 -> 0 | H23: =Hevonen!$M$21 -> 0 | I23: =Renkaat!$F$21 -> 0 | J23: =Renkaat!$M$21 -> 0 | K23: =Hyppy!$F$21 -> 0 | L23: =Hyppy!$M$21 -> 0 | M23: =Nojapuut!$F$21 -> 0 | N23: =Nojapuut!$M$21 -> 0 | O23: =Rekki!$F$21 -> 0 | P23: =Rekki!$M$21 -> 0 | Q23: =P23+N23+L23+J23+H23+F23 -> 0 | R23: 0
A24: =A23+1 -> 20 | B24: 121 | C24: Aaron Hotanen | D24: TuPy | E24: =Permanto!$F$22 -> 0 | F24: =Permanto!$M$22 -> 0 | G24: =Hevonen!$F$22 -> 0 | H24: =Hevonen!$M$22 -> 0 | I24: =Renkaat!$F$22 -> 0 | J24: =Renkaat!$M$22 -> 0 | K24: =Hyppy!$F$22 -> 0 | L24: =Hyppy!$M$22 -> 0 | M24: =Nojapuut!$F$22 -> 0 | N24: =Nojapuut!$M$22 -> 0 | O24: =Rekki!$F$22 -> 0 | P24: =Rekki!$M$22 -> 0 | Q24: =P24+N24+L24+J24+H24+F24 -> 0 | R24: 0
A25: =A24+1 -> 21 | B25: 122 | C25: Oz Ekholm | D25: TuPy | E25: =Permanto!$F$23 -> 0 | F25: =Permanto!$M$23 -> 0 | G25: =Hevonen!$F$23 -> 0 | H25: =Hevonen!$M$23 -> 0 | I25: =Renkaat!$F$23 -> 0 | J25: =Renkaat!$M$23 -> 0 | K25: =Hyppy!$F$23 -> 0 | L25: =Hyppy!$M$23 -> 0 | M25: =Nojapuut!$F$23 -> 0 | N25: =Nojapuut!$M$23 -> 0 | O25: =Rekki!$F$23 -> 0 | P25: =Rekki!$M$23 -> 0 | Q25: =P25+N25+L25+J25+H25+F25 -> 0 | R25: 0
A26: =A25+1 -> 22 | B26: 123 | C26: Samuel Oporta | D26: TuPy | E26: =Permanto!$F$24 -> 0 | F26: =Permanto!$M$24 -> 0 | G26: =Hevonen!$F$24 -> 0 | H26: =Hevonen!$M$24 -> 0 | I26: =Renkaat!$F$24 -> 0 | J26: =Renkaat!$M$24 -> 0 | K26: =Hyppy!$F$24 -> 0 | L26: =Hyppy!$M$24 -> 0 | M26: =Nojapuut!$F$24 -> 0 | N26: =Nojapuut!$M$24 -> 0 | O26: =Rekki!$F$24 -> 0 | P26: =Rekki!$M$24 -> 0 | Q26: =P26+N26+L26+J26+H26+F26 -> 0 | R26: 0
A27: =A26+1 -> 23 | B27: 124 | C27: Juho Kanerva | D27: TuUL | E27: =Permanto!$F$25 -> 0 | F27: =Permanto!$M$25 -> 0 | G27: =Hevonen!$F$25 -> 0 | H27: =Hevonen!$M$25 -> 0 | I27: =Renkaat!$F$25 -> 0 | J27: =Renkaat!$M$25 -> 0 | K27: =Hyppy!$F$25 -> 0 | L27: =Hyppy!$M$25 -> 0 | M27: =Nojapuut!$F$25 -> 0 | N27: =Nojapuut!$M$25 -> 0 | O27: =Rekki!$F$25 -> 0 | P27: =Rekki!$M$25 -> 0 | Q27: =P27+N27+L27+J27+H27+F27 -> 0 | R27: 0
A28: =A27+1 -> 24 | B28: 125 | C28: Olli Kanerva | D28: TuUL | E28: =Permanto!$F$26 -> 0 | F28: =Permanto!$M$26 -> 0 | G28: =Hevonen!$F$26 -> 0 | H28: =Hevonen!$M$26 -> 0 | I28: =Renkaat!$F$26 -> 0 | J28: =Renkaat!$M$26 -> 0 | K28: =Hyppy!$F$26 -> 0 | L28: =Hyppy!$M$26 -> 0 | M28: =Nojapuut!$F$26 -> 0 | N28: =Nojapuut!$M$26 -> 0 | O28: =Rekki!$F$26 -> 0 | P28: =Rekki!$M$26 -> 0 | Q28: =P28+N28+L28+J28+H28+F28 -> 0 | R28: 0
A29: =A28+1 -> 25 | B29: 126 | C29: Sami Aalto | D29: TuUL | E29: =Permanto!$F$27 -> 0 | F29: =Permanto!$M$27 -> 0 | G29: =Hevonen!$F$27 -> 0 | H29: =Hevonen!$M$27 -> 0 | I29: =Renkaat!$F$27 -> 0 | J29: =Renkaat!$M$27 -> 0 | K29: =Hyppy!$F$27 -> 0 | L29: =Hyppy!$M$27 -> 0 | M29: =Nojapuut!$F$27 -> 0 | N29: =Nojapuut!$M$27 -> 0 | O29: =Rekki!$F$27 -> 0 | P29: =Rekki!$M$27 -> 0 | Q29: =P29+N29+L29+J29+H29+F29 -> 0 | R29: 0
A30: =A29+1 -> 26 | B30: 127 | C30: Aaro Lamberg | D30: VSH | E30: =Permanto!$F$28 -> 0 | F30: =Permanto!$M$28 -> 0 | G30: =Hevonen!$F$28 -> 0 | H30: =Hevonen!$M$28 -> 0 | I30: =Renkaat!$F$28 -> 0 | J30: =Renkaat!$M$28 -> 0 | K30: =Hyppy!$F$28 -> 0 | L30: =Hyppy!$M$28 -> 0 | M30: =Nojapuut!$F$28 -> 0 | N30: =Nojapuut!$M$28 -> 0 | O30: =Rekki!$F$28 -> 0 | P30: =Rekki!$M$28 -> 0 | Q30: =P30+N30+L30+J30+H30+F30 -> 0 | R30: 0
A31: =A30+1 -> 27 | B31: 128 | C31: Jouko Koskinen | D31: VSH | E31: =Permanto!$F$29 -> 0 | F31: =Permanto!$M$29 -> 0 | G31: =Hevonen!$F$29 -> 0 | H31: =Hevonen!$M$29 -> 0 | I31: =Renkaat!$F$29 -> 0 | J31: =Renkaat!$M$29 -> 0 | K31: =Hyppy!$F$29 -> 0 | L31: =Hyppy!$M$29 -> 0 | M31: =Nojapuut!$F$29 -> 0 | N31: =Nojapuut!$M$29 -> 0 | O31: =Rekki!$F$29 -> 0 | P31: =Rekki!$M$29 -> 0 | Q31: =P31+N31+L31+J31+H31+F31 -> 0 | R31: 0
A32: =A31+1 -> 28 | B32: 129 | C32: Kasper Holopainen | D32: VSH | E32: =Permanto!$F$30 -> 0 | F32: =Permanto!$M$30 -> 0 | G32: =Hevonen!$F$30 -> 0 | H32: =Hevonen!$M$30 -> 0 | I32: =Renkaat!$F$30 -> 0 | J32: =Renkaat!$M$30 -> 0 | K32: =Hyppy!$F$30 -> 0 | L32: =Hyppy!$M$30 -> 0 | M32: =Nojapuut!$F$30 -> 0 | N32: =Nojapuut!$M$30 -> 0 | O32: =Rekki!$F$30 -> 0 | P32: =Rekki!$M$30 -> 0 | Q32: =P32+N32+L32+J32+H32+F32 -> 0 | R32: 0
A33: =A32+1 -> 29 | B33: 130 | C33: Petrus Laulumaa | D33: VSH | E33: =Permanto!$F$31 -> 0 | F33: =Permanto!$M$31 -> 0 | G33: =Hevonen!$F$31 -> 0 | H33: =Hevonen!$M$31 -> 0 | I33: =Renkaat!$F$31 -> 0 | J33: =Renkaat!$M$31 -> 0 | K33: =Hyppy!$F$31 -> 0 | L33: =Hyppy!$M$31 -> 0 | M33: =Nojapuut!$F$31 -> 0 | N33: =Nojapuut!$M$31 -> 0 | O33: =Rekki!$F$31 -> 0 | P33: =Rekki!$M$31 -> 0 | Q33: =P33+N33+L33+J33+H33+F33 -> 0
A34: =A33+1 -> 30 | B34: 131 | C34: Timo Niemelä | D34: VSH | E34: =Permanto!$F$32 -> 0 | F34: =Permanto!$M$32 -> 0 | G34: =Hevonen!$F$32 -> 0 | H34: =Hevonen!$M$32 -> 0 | I34: =Renkaat!$F$32 -> 0 | J34: =Renkaat!$M$32 -> 0 | K34: =Hyppy!$F$32 -> 0 | L34: =Hyppy!$M$32 -> 0 | M34: =Nojapuut!$F$32 -> 0 | N34: =Nojapuut!$M$32 -> 0 | O34: =Rekki!$F$32 -> 0 | P34: =Rekki!$M$32 -> 0 | Q34: =P34+N34+L34+J34+H34+F34 -> 0 | R34: =Q34-$Q$5 -> 0
A35: =A34+1 -> 31 | B35: 132 | C35: Tomi Tuuha | D35: VSH | E35: =Permanto!$F$33 -> 0 | F35: =Permanto!$M$33 -> 0 | G35: =Hevonen!$F$33 -> 0 | H35: =Hevonen!$M$33 -> 0 | I35: =Renkaat!$F$33 -> 0 | J35: =Renkaat!$M$33 -> 0 | K35: =Hyppy!$F$33 -> 0 | L35: =Hyppy!$M$33 -> 0 | M35: =Nojapuut!$F$33 -> 0 | N35: =Nojapuut!$M$33 -> 0 | O35: =Rekki!$F$33 -> 0 | P35: =Rekki!$M$33 -> 0 | Q35: =P35+N35+L35+J35+H35+F35 -> 0
A36: =A35+1 -> 32 | B36: 133 | C36: Jarkko Pekkanen | D36: VSK-U | E36: =Permanto!$F$34 -> 0 | F36: =Permanto!$M$34 -> 0 | G36: =Hevonen!$F$34 -> 0 | H36: =Hevonen!$M$34 -> 0 | I36: =Renkaat!$F$34 -> 0 | J36: =Renkaat!$M$34 -> 0 | K36: =Hyppy!$F$34 -> 0 | L36: =Hyppy!$M$34 -> 0 | M36: =Nojapuut!$F$34 -> 0 | N36: =Nojapuut!$M$34 -> 0 | O36: =Rekki!$F$34 -> 0 | P36: =Rekki!$M$34 -> 0 | Q36: =P36+N36+L36+J36+H36+F36 -> 0 | R36: =Q36-$Q$5 -> 0

Sheet FinaaliPH
A1: 1 | C1: =IF(B1="","",VLOOKUP(B1,B4:H11,2,FALSE)) ->  | E1: =IF($B1="","",VLOOKUP($B1,$B4:$H11,4,FALSE)) ->  | G1: =IF($B1="","",VLOOKUP($B1,$B4:$H11,7,FALSE)) -> 
A2: Permanto
A3: 0 | B3: Nr | C3: Nimi | D3: Seura | E3: D | F3: väh | G3: E | H3: Yhteensä
A4: 1 | B4: 10 | C4: Toni Rajala | E4: 7 | F4: 0 | G4: 9 | H4: =E4-F4+G4 -> 16 | J4: =IF((H4=H3),IF((H4=0),"","tie"),"") -> 
A5: 2 | B5: 8 | C5: Teemu Selänne | E5: 3 | F5: 0 | G5: 9 | H5: 12
A6: 3 | B6: 11 | C6: Saku Koivu | E6: 4 | F6: 1 | G6: 9 | H6: 12 | J6: tie
A7: 4 | B7: 22 | C7: Ville Leino | E7: 2.2 | F7: 0.4 | G7: 8.75 | H7: 10.55
A8: 5 | B8: 15 | C8: Juha-Pekka Hytönen | E8: 2 | F8: 0.5 | G8: 8.85 | H8: 10.35
A9: 6 | B9: 12 | C9: Jani Tuppurainen | E9: 1 | F9: 0.3 | G9: 8.7 | H9: 9.4
A10: 7 | B10: 1 | C10: Kari Lehtonen | E10: 3 | F10: 4 | G10: 8.5 | H10: 7.5
A11: 8 | B11: 2 | C11: Sami Salo | H11: 0
A13: 1 | C13: =IF(B13="","",VLOOKUP(B13,B16:H23,2,FALSE)) ->  | E13: =IF($B13="","",VLOOKUP($B13,$B16:$H23,4,FALSE)) ->  | G13: =IF($B13="","",VLOOKUP($B13,$B16:$H23,7,FALSE)) -> 
A14: Hevonen
A15: 0 | B15: Nr | C15: Nimi | D15: Seura | E15: D | F15: väh | G15: E | H15: Yhteensä
A16: 1 | B16: 2 | C16: Sami Salo | E16: 6 | F16: 0 | G16: 9.75 | H16: =E16-F16+G16 -> 15.75 | J16: =IF((H16=H15),IF((H16=0),"","tie"),"") -> 
A17: 2 | B17: 10 | C17: Toni Rajala | E17: 5 | F17: 0 | G17: 9 | H17: 14
A18: 3 | B18: 22 | C18: Ville Leino | E18: 2 | F18: 0 | G18: 9 | H18: 11
A19: 4 | B19: 8 | C19: Teemu Selänne | E19: 4 | F19: 2 | G19: 9 | H19: 11 | J19: tie
A20: 5 | B20: 1 | C20: Kari Lehtonen | E20: 3 | F20: 4 | G20: 8.5 | H20: 7.5
A21: 6 | B21: 12 | C21: Jani Tuppurainen | H21: 0
A22: 7 | B22: 11 | C22: Saku Koivu | H22: 0
A23: 8 | B23: 15 | C23: Juha-Pekka Hytönen | H23: 0

Sheet FinaaliRH
A1: 1 | B1: 2 | C1: =IF(B1="","",VLOOKUP(B1,B4:H11,2,FALSE)) -> Sami Salo | E1: =IF($B1="","",VLOOKUP($B1,$B4:$H11,4,FALSE)) -> 4 | G1: =IF($B1="","",VLOOKUP($B1,$B4:$H11,7,FALSE)) -> 10.6
A2: Renkaat
A3: 0 | B3: Nr | C3: Nimi | D3: Seura | E3: D | F3: väh | G3: E | H3: Yhteensä
A4: 1 | B4: 2 | C4: Sami Salo | D4: STV | E4: 4 | F4: 2 | G4: 8.6 | H4: =E4-F4+G4 -> 10.6 | J4: =IF((H4=H3),IF((H4=0),"","tie"),"") -> 
A5: 2 | B5: 10 | C5: Toni Rajala | D5: HTV | E5: 3.1 | F5: 1 | G5: 8 | H5: 10.1
A6: 3 | B6: 11 | C6: Saku Koivu | D6: HTV | E6: 2 | F6: 1 | G6: 8 | H6: 9
A7: 4 | B7: 1 | C7: Kari Lehtonen | D7: HTV | H7: 0
A8: 5 | B8: 12 | C8: Jani Tuppurainen | D8: Jyvo | H8: 0
A9: 6 | B9: 8 | C9: Teemu Selänne | D9: HTV | H9: 0
A10: 7 | B10: 15 | C10: Juha-Pekka Hytönen | D10: Jyvo | H10: 0
A11: 8 | B11: 22 | C11: Ville Leino | D11: STV | H11: 0
A13: 1 | B13: 22 | C13: =IF(B13="","",VLOOKUP(B13,B16:H23,2,FALSE)) -> Ville Leino | E13: =IF($B13="","",VLOOKUP($B13,$B16:$H23,4,FALSE)) -> 6.2 | G13: =IF($B13="","",VLOOKUP($B13,$B16:$H23,7,FALSE)) -> 14.9 | I13: =IF($B13="","",VLOOKUP($B13,$B16:$M23,8,FALSE)) -> 5.4 | K13: =IF($B13="","",VLOOKUP($B13,$B16:$M23,11,FALSE)) -> 14.45 | M13: =IF($B13="","",VLOOKUP($B13,$B16:$M23,12,FALSE)) -> 14.675
A14: Hyppy | F14: 1 | J14: 2 | O14: =IF((M14=M19),IF((M14=0),"","tie"),"") -> 
A15: 0 | B15: Nr | C15: Nimi | D15: Seura | E15: D | F15: väh | G15: E | H15: Yhteensä | I15: D | J15: väh | K15: E | L15: Yhteensä | M15: Tulos
A16: 1 | B16: 22 | C16: Ville Leino | D16: STV | E16: 6.2 | F16: 0.2 | G16: 8.9 | H16: =E16-F16+G16 -> 14.9 | I16: 5.4 | J16: 0 | K16: 9.05 | L16: =I16-J16+K16 -> 14.45 | M16: =(H16+L16)/2 -> 14.675 | O16: =IF((M16=M15),IF((M16=0),"","tie"),"") -> 
A17: 2 | B17: 23 | C17: Ossi Louhivaara | D17: Jyvo | E17: 4 | F17: 0.1 | G17: 7.95 | H17: =E17-F17+G17 -> 11.85 | I17: 4.8 | J17: 0 | K17: 8.6 | L17: 13.4 | M17: =(H17+L17)/2 -> 12.625 | O17: =IF((M17=M16),IF((M17=0),"","tie"),"") -> 
A18: 3 | B18: 11 | C18: Saku Koivu | D18: HTV | E18: 4 | F18: 0 | G18: 9 | H18: 13 | I18: 2 | J18: 0 | K18: 9 | L18: 11 | M18: 12 | O18: =IF((M18=M17),IF((M18=0),"","tie"),"") -> 
A19: 4 | B19: 10 | C19: Toni Rajala | D19: HTV | E19: 3 | F19: 0 | G19: 9 | H19: 12 | I19: 3 | J19: 0 | K19: 9 | L19: 12 | M19: 12 | O19: =IF((M19=M18),IF((M19=0),"","tie"),"") -> tie
A20: 5 | B20: 8 | C20: Teemu Selänne | D20: HTV | E20: 4 | F20: 0 | G20: 9 | H20: 13 | I20: 2 | J20: 0 | K20: 9 | L20: 11 | M20: 12 | O20: =IF((M20=M14),IF((M20=0),"","tie"),"") -> 
A21: 6 | B21: 21 | C21: Teemu Eronen | D21: HTV | E21: 2 | F21: 0 | G21: 9 | H21: 11 | I21: 4 | J21: 0 | K21: 8.95 | L21: 12.95 | M21: 11.975 | O21: =IF((M21=M20),IF((M21=0),"","tie"),"") -> 
A22: 7 | B22: 12 | C22: Jani Tuppurainen | D22: Jyvo | E22: 1.1 | F22: 1 | G22: 9 | H22: 9.1 | I22: 4.1 | J22: 0 | K22: 9 | L22: 13.1 | M22: 11.1 | O22: =IF((M22=M21),IF((M22=0),"","tie"),"") -> 
A23: 8 | B23: 15 | C23: Juha-Pekka Hytönen | D23: Jyvo | E23: 1 | F23: 1 | G23: 8 | H23: 8 | L23: 0 | M23: 4 | O23: =IF((M23=M22),IF((M23=0),"","tie"),"") -> 

Sheet FinaaliNR
A1: 1 | B1: 2 | C1: =IF(B1="","",VLOOKUP(B1,B4:H11,2,FALSE)) -> Sami Salo | E1: =IF($B1="","",VLOOKUP($B1,$B4:$H11,4,FALSE)) -> 4.8 | G1: =IF($B1="","",VLOOKUP($B1,$B4:$H11,7,FALSE)) -> 13.85
A2: Nojapuut
A3: 0 | B3: Nr | C3: Nimi | D3: Seura | E3: D | F3: väh | G3: E | H3: Yhteensä
A4: 1 | B4: 2 | C4: Sami Salo | E4: 4.8 | F4: 0 | G4: 9.05 | H4: =E4-F4+G4 -> 13.85 | J4: =IF((H4=H3),IF((H4=0),"","tie"),"") -> 
A5: 2 | B5: 11 | C5: Saku Koivu | E5: 1.1 | F5: 1 | G5: 8 | H5: 8.1
A6: 3 | B6: 10 | C6: Toni Rajala | H6: 0
A7: 4 | B7: 1 | C7: Kari Lehtonen | H7: 0
A8: 5 | B8: 12 | C8: Jani Tuppurainen | H8: 0
A9: 6 | B9: 8 | C9: Teemu Selänne | H9: 0
A10: 7 | B10: 15 | C10: Juha-Pekka Hytönen | H10: 0
A11: 8 | B11: 22 | C11: Ville Leino | H11: 0
A13: 1 | B13: 22 | C13: =IF(B13="","",VLOOKUP(B13,B16:H23,2,FALSE)) -> Ville Leino | E13: =IF($B13="","",VLOOKUP($B13,$B16:$H23,4,FALSE)) -> 1.2 | G13: =IF($B13="","",VLOOKUP($B13,$B16:$H23,7,FALSE)) -> 10.2
A14: Rekki
A15: 0 | B15: Nr | C15: Nimi | D15: Seura | E15: D | F15: väh | G15: E | H15: Yhteensä
A16: 1 | B16: 22 | C16: Ville Leino | E16: 1.2 | F16: 0 | G16: 9 | H16: =E16-F16+G16 -> 10.2 | J16: =IF((H16=H15),IF((H16=0),"","tie"),"") -> 
A17: 2 | B17: 10 | C17: Toni Rajala | H17: =E17-F17+G17 -> 0
A18: 3 | B18: 1 | C18: Kari Lehtonen | H18: =E18-F18+G18 -> 0
A19: 4 | B19: 12 | C19: Jani Tuppurainen | H19: =E19-F19+G19 -> 0
A20: 5 | B20: 2 | C20: Sami Salo | H20: =E20-F20+G20 -> 0
A21: 6 | B21: 11 | C21: Saku Koivu | H21: =E21-F21+G21 -> 0
A22: 7 | B22: 8 | C22: Teemu Selänne | H22: =E22-F22+G22 -> 0
A23: 8 | B23: 15 | C23: Juha-Pekka Hytönen | H23: =E23-F23+G23 -> 0

Sheet PermantoT
D1: Suomen mestaruuskilpailut Jyväskylä 17.4.2011
A2: =H3 -> 
A3: Permanto
A4: 0 | B4: Nr | C4: Nimi | D4: Seura | E4: D | F4: väh | G4: E | H4: Yhteensä
A5: 1 | B5: 102 | C5: Heikki Niva | D5: Espoon Telinetaiturit | J5: =IF((H5=H4),IF((H5=0),"","tie"),"") -> 
A6: 2 | B6: 103 | C6: Ilkka Kuusela | D6: Espoon Telinetaiturit
A7: 3 | B7: 104 | C7: Milo Siivonen | D7: Espoon Telinetaiturit
A8: 4 | B8: 105 | C8: Oskar Kirmes | D8: Espoon Telinetaiturit
A9: 5 | B9: 106 | C9: Henrik Petterson | D9: Helsingfors Gymnastikklubb
A10: 6 | B10: 107 | C10: Artturi Lobski | D10: Jyväskylän Voimistelijat
A11: 7 | B11: 108 | C11: Heikki Saarenketo | D11: Jyväskylän Voimistelijat
A12: 8 | B12: 109 | C12: Janne Haapajoki | D12: Jyväskylän Voimistelijat
A13: 9 | B13: 110 | C13: Jarkko Harju | D13: Jyväskylän Voimistelijat
A14: 10 | B14: 111 | C14: Leevi Aihos | D14: Jyväskylän Voimistelijat
A15: 11 | B15: 112 | C15: Pavel Titov | D15: Jyväskylän Voimistelijat
A16: 12 | B16: 113 | C16: Sakari Vekki | D16: Jyväskylän Voimistelijat
A17: 13 | B17: 114 | C17: Jimi Päivänen | D17: Kotkan Telinevoimistelijat
A18: 14 | B18: 115 | C18: Markku Leinonen | D18: Kotkan Telinevoimistelijat
A19: 15 | B19: 116 | C19: Arttu Kesti | D19: Oulun Pyrintö
A20: 16 | B20: 117 | C20: Konsta Huuki | D20: Oulun Pyrintö
A21: 17 | B21: 118 | C21: Kim Junna | D21: Taipumattomat
A22: 18 | B22: 119 | C22: Mikael Miettinen | D22: Tampereen Sisu
A23: 19 | B23: 120 | C23: Ville Hynninen | D23: Tampereen Sisu
A24: 20 | B24: 121 | C24: Aaron Hotanen | D24: Turun Pyrkivä
A25: 21 | B25: 122 | C25: Oz Ekholm | D25: Turun Pyrkivä
A26: 22 | B26: 123 | C26: Samuel Oporta | D26: Turun Pyrkivä
A27: 23 | B27: 124 | C27: Juho Kanerva | D27: Turun Urheiluliitto
A28: 24 | B28: 125 | C28: Olli Kanerva | D28: Turun Urheiluliitto
A29: 25 | B29: 126 | C29: Sami Aalto | D29: Turun Urheiluliitto
A30: 26 | B30: 127 | C30: Aaro Lamberg | D30: Voimisteluseura Helsinki
A31: 27 | B31: 128 | C31: Jouko Koskinen | D31: Voimisteluseura Helsinki
A32: 28 | B32: 129 | C32: Kasper Holopainen | D32: Voimisteluseura Helsinki
A33: 29 | B33: 130 | C33: Petrus Laulumaa | D33: Voimisteluseura Helsinki
A34: 30 | B34: 131 | C34: Timo Niemelä | D34: Voimisteluseura Helsinki
A35: 31 | B35: 132 | C35: Tomi Tuuha | D35: Voimisteluseura Helsinki
A36: 32 | B36: 133 | C36: Jarkko Pekkanen | D36: Voimisteluseura Keski-Uusimaa

Sheet HevonenT
D1: Suomen mestaruuskilpailut Jyväskylä 17.4.2011
A2: =H3 -> 
A3: Hevonen
A4: 0 | B4: Nr | C4: Nimi | D4: Seura | E4: D | F4: väh | G4: E | H4: Yhteensä
A5: 1 | B5: 102 | C5: Heikki Niva | D5: Espoon Telinetaiturit | J5: =IF((H5=H4),IF((H5=0),"","tie"),"") -> 
A6: 2 | B6: 103 | C6: Ilkka Kuusela | D6: Espoon Telinetaiturit
A7: 3 | B7: 104 | C7: Milo Siivonen | D7: Espoon Telinetaiturit
A8: 4 | B8: 105 | C8: Oskar Kirmes | D8: Espoon Telinetaiturit
A9: 5 | B9: 106 | C9: Henrik Petterson | D9: Helsingfors Gymnastikklubb
A10: 6 | B10: 107 | C10: Artturi Lobski | D10: Jyväskylän Voimistelijat
A11: 7 | B11: 108 | C11: Heikki Saarenketo | D11: Jyväskylän Voimistelijat
A12: 8 | B12: 109 | C12: Janne Haapajoki | D12: Jyväskylän Voimistelijat
A13: 9 | B13: 110 | C13: Jarkko Harju | D13: Jyväskylän Voimistelijat
A14: 10 | B14: 111 | C14: Leevi Aihos | D14: Jyväskylän Voimistelijat
A15: 11 | B15: 112 | C15: Pavel Titov | D15: Jyväskylän Voimistelijat
A16: 12 | B16: 113 | C16: Sakari Vekki | D16: Jyväskylän Voimistelijat
A17: 13 | B17: 114 | C17: Jimi Päivänen | D17: Kotkan Telinevoimistelijat
A18: 14 | B18: 115 | C18: Markku Leinonen | D18: Kotkan Telinevoimistelijat
A19: 15 | B19: 116 | C19: Arttu Kesti | D19: Oulun Pyrintö
A20: 16 | B20: 117 | C20: Konsta Huuki | D20: Oulun Pyrintö
A21: 17 | B21: 118 | C21: Kim Junna | D21: Taipumattomat
A22: 18 | B22: 119 | C22: Mikael Miettinen | D22: Tampereen Sisu
A23: 19 | B23: 120 | C23: Ville Hynninen | D23: Tampereen Sisu
A24: 20 | B24: 121 | C24: Aaron Hotanen | D24: Turun Pyrkivä
A25: 21 | B25: 122 | C25: Oz Ekholm | D25: Turun Pyrkivä
A26: 22 | B26: 123 | C26: Samuel Oporta | D26: Turun Pyrkivä
A27: 23 | B27: 124 | C27: Juho Kanerva | D27: Turun Urheiluliitto
A28: 24 | B28: 125 | C28: Olli Kanerva | D28: Turun Urheiluliitto
A29: 25 | B29: 126 | C29: Sami Aalto | D29: Turun Urheiluliitto
A30: 26 | B30: 127 | C30: Aaro Lamberg | D30: Voimisteluseura Helsinki
A31: 27 | B31: 128 | C31: Jouko Koskinen | D31: Voimisteluseura Helsinki
A32: 28 | B32: 129 | C32: Kasper Holopainen | D32: Voimisteluseura Helsinki
A33: 29 | B33: 130 | C33: Petrus Laulumaa | D33: Voimisteluseura Helsinki
A34: 30 | B34: 131 | C34: Timo Niemelä | D34: Voimisteluseura Helsinki
A35: 31 | B35: 132 | C35: Tomi Tuuha | D35: Voimisteluseura Helsinki
A36: 32 | B36: 133 | C36: Jarkko Pekkanen | D36: Voimisteluseura Keski-Uusimaa

Sheet RenkaatT
D1: Suomen mestaruuskilpailut Jyväskylä 17.4.2011
A2: =H3 -> 
A3: Renkaat
A4: 0 | B4: Nr | C4: Nimi | D4: Seura | E4: D | F4: väh | G4: E | H4: Yhteensä
A5: 1 | B5: 102 | C5: Heikki Niva | D5: Espoon Telinetaiturit | J5: =IF((H5=H4),IF((H5=0),"","tie"),"") -> 
A6: 2 | B6: 103 | C6: Ilkka Kuusela | D6: Espoon Telinetaiturit
A7: 3 | B7: 104 | C7: Milo Siivonen | D7: Espoon Telinetaiturit
A8: 4 | B8: 105 | C8: Oskar Kirmes | D8: Espoon Telinetaiturit
A9: 5 | B9: 106 | C9: Henrik Petterson | D9: Helsingfors Gymnastikklubb
A10: 6 | B10: 107 | C10: Artturi Lobski | D10: Jyväskylän Voimistelijat
A11: 7 | B11: 108 | C11: Heikki Saarenketo | D11: Jyväskylän Voimistelijat
A12: 8 | B12: 109 | C12: Janne Haapajoki | D12: Jyväskylän Voimistelijat
A13: 9 | B13: 110 | C13: Jarkko Harju | D13: Jyväskylän Voimistelijat
A14: 10 | B14: 111 | C14: Leevi Aihos | D14: Jyväskylän Voimistelijat
A15: 11 | B15: 112 | C15: Pavel Titov | D15: Jyväskylän Voimistelijat
A16: 12 | B16: 113 | C16: Sakari Vekki | D16: Jyväskylän Voimistelijat
A17: 13 | B17: 114 | C17: Jimi Päivänen | D17: Kotkan Telinevoimistelijat
A18: 14 | B18: 115 | C18: Markku Leinonen | D18: Kotkan Telinevoimistelijat
A19: 15 | B19: 116 | C19: Arttu Kesti | D19: Oulun Pyrintö
A20: 16 | B20: 117 | C20: Konsta Huuki | D20: Oulun Pyrintö
A21: 17 | B21: 118 | C21: Kim Junna | D21: Taipumattomat
A22: 18 | B22: 119 | C22: Mikael Miettinen | D22: Tampereen Sisu
A23: 19 | B23: 120 | C23: Ville Hynninen | D23: Tampereen Sisu
A24: 20 | B24: 121 | C24: Aaron Hotanen | D24: Turun Pyrkivä
A25: 21 | B25: 122 | C25: Oz Ekholm | D25: Turun Pyrkivä
A26: 22 | B26: 123 | C26: Samuel Oporta | D26: Turun Pyrkivä
A27: 23 | B27: 124 | C27: Juho Kanerva | D27: Turun Urheiluliitto
A28: 24 | B28: 125 | C28: Olli Kanerva | D28: Turun Urheiluliitto
A29: 25 | B29: 126 | C29: Sami Aalto | D29: Turun Urheiluliitto
A30: 26 | B30: 127 | C30: Aaro Lamberg | D30: Voimisteluseura Helsinki
A31: 27 | B31: 128 | C31: Jouko Koskinen | D31: Voimisteluseura Helsinki
A32: 28 | B32: 129 | C32: Kasper Holopainen | D32: Voimisteluseura Helsinki
A33: 29 | B33: 130 | C33: Petrus Laulumaa | D33: Voimisteluseura Helsinki
A34: 30 | B34: 131 | C34: Timo Niemelä | D34: Voimisteluseura Helsinki
A35: 31 | B35: 132 | C35: Tomi Tuuha | D35: Voimisteluseura Helsinki
A36: 32 | B36: 133 | C36: Jarkko Pekkanen | D36: Voimisteluseura Keski-Uusimaa

Sheet HyppyT
D1: Suomen mestaruuskilpailut Jyväskylä 17.4.2011
A2: =H3 -> 
A3: Hyppy | F3: 1 | J3: 2
A4: sij | B4: Nr | C4: Nimi | D4: Seura | E4: D | F4: väh | G4: E | H4: Yhteensä | I4: D | J4: väh | K4: E | L4: Yhteensä | M4: Tulos
A5: 1 | B5: 102 | C5: Heikki Niva | D5: Espoon Telinetaiturit | M5: =(H5+L5)/2 -> 0 | O5: =IF((M5=M4),IF((M5=0),"","tie"),"") -> 
A6: 2 | B6: 103 | C6: Ilkka Kuusela | D6: Espoon Telinetaiturit | M6: 0
A7: 3 | B7: 104 | C7: Milo Siivonen | D7: Espoon Telinetaiturit | M7: 0
A8: 4 | B8: 105 | C8: Oskar Kirmes | D8: Espoon Telinetaiturit | M8: 0
A9: 5 | B9: 106 | C9: Henrik Petterson | D9: Helsingfors Gymnastikklubb | M9: 0
A10: 6 | B10: 107 | C10: Artturi Lobski | D10: Jyväskylän Voimistelijat | M10: 0
A11: 7 | B11: 108 | C11: Heikki Saarenketo | D11: Jyväskylän Voimistelijat | M11: 0
A12: 8 | B12: 109 | C12: Janne Haapajoki | D12: Jyväskylän Voimistelijat | M12: 0
A13: 9 | B13: 110 | C13: Jarkko Harju | D13: Jyväskylän Voimistelijat | M13: 0
A14: 10 | B14: 111 | C14: Leevi Aihos | D14: Jyväskylän Voimistelijat | M14: 0
A15: 11 | B15: 112 | C15: Pavel Titov | D15: Jyväskylän Voimistelijat | M15: 0
A16: 12 | B16: 113 | C16: Sakari Vekki | D16: Jyväskylän Voimistelijat | M16: 0
A17: 13 | B17: 114 | C17: Jimi Päivänen | D17: Kotkan Telinevoimistelijat | M17: 0
A18: 14 | B18: 115 | C18: Markku Leinonen | D18: Kotkan Telinevoimistelijat | M18: 0
A19: 15 | B19: 116 | C19: Arttu Kesti | D19: Oulun Pyrintö | M19: 0
A20: 16 | B20: 117 | C20: Konsta Huuki | D20: Oulun Pyrintö | M20: 0
A21: 17 | B21: 118 | C21: Kim Junna | D21: Taipumattomat | M21: 0
A22: 18 | B22: 119 | C22: Mikael Miettinen | D22: Tampereen Sisu | M22: 0
A23: 19 | B23: 120 | C23: Ville Hynninen | D23: Tampereen Sisu | M23: 0
A24: 20 | B24: 121 | C24: Aaron Hotanen | D24: Turun Pyrkivä | M24: 0
A25: 21 | B25: 122 | C25: Oz Ekholm | D25: Turun Pyrkivä | M25: 0
A26: 22 | B26: 123 | C26: Samuel Oporta | D26: Turun Pyrkivä | M26: 0
A27: 23 | B27: 124 | C27: Juho Kanerva | D27: Turun Urheiluliitto | M27: 0
A28: 24 | B28: 125 | C28: Olli Kanerva | D28: Turun Urheiluliitto | M28: 0
A29: 25 | B29: 126 | C29: Sami Aalto | D29: Turun Urheiluliitto | M29: 0
A30: 26 | B30: 127 | C30: Aaro Lamberg | D30: Voimisteluseura Helsinki | M30: 0
A31: 27 | B31: 128 | C31: Jouko Koskinen | D31: Voimisteluseura Helsinki | M31: 0
A32: 28 | B32: 129 | C32: Kasper Holopainen | D32: Voimisteluseura Helsinki | M32: 0
A33: 29 | B33: 130 | C33: Petrus Laulumaa | D33: Voimisteluseura Helsinki | M33: 0
A34: 30 | B34: 131 | C34: Timo Niemelä | D34: Voimisteluseura Helsinki | M34: 0
A35: 31 | B35: 132 | C35: Tomi Tuuha | D35: Voimisteluseura Helsinki
A36: 32 | B36: 133 | C36: Jarkko Pekkanen | D36: Voimisteluseura Keski-Uusimaa
J51: =IF((H51=H50),IF((H51=0),"","tie"),"") -> 
J52: =IF((H52=H51),IF((H52=0),"","tie"),"") -> 

Sheet NojapuutT
D1: Suomen mestaruuskilpailut Jyväskylä 17.4.2011
A2: =H3 -> 
A3: Nojapuut
A4: 0 | B4: Nr | C4: Nimi | D4: Seura | E4: D | F4: väh | G4: E | H4: Yhteensä
A5: 1 | B5: 102 | C5: Heikki Niva | D5: Espoon Telinetaiturit | J5: =IF((H5=H4),IF((H5=0),"","tie"),"") -> 
A6: 2 | B6: 103 | C6: Ilkka Kuusela | D6: Espoon Telinetaiturit
A7: 3 | B7: 104 | C7: Milo Siivonen | D7: Espoon Telinetaiturit
A8: 4 | B8: 105 | C8: Oskar Kirmes | D8: Espoon Telinetaiturit
A9: 5 | B9: 106 | C9: Henrik Petterson | D9: Helsingfors Gymnastikklubb
A10: 6 | B10: 107 | C10: Artturi Lobski | D10: Jyväskylän Voimistelijat
A11: 7 | B11: 108 | C11: Heikki Saarenketo | D11: Jyväskylän Voimistelijat
A12: 8 | B12: 109 | C12: Janne Haapajoki | D12: Jyväskylän Voimistelijat
A13: 9 | B13: 110 | C13: Jarkko Harju | D13: Jyväskylän Voimistelijat
A14: 10 | B14: 111 | C14: Leevi Aihos | D14: Jyväskylän Voimistelijat
A15: 11 | B15: 112 | C15: Pavel Titov | D15: Jyväskylän Voimistelijat
A16: 12 | B16: 113 | C16: Sakari Vekki | D16: Jyväskylän Voimistelijat
A17: 13 | B17: 114 | C17: Jimi Päivänen | D17: Kotkan Telinevoimistelijat
A18: 14 | B18: 115 | C18: Markku Leinonen | D18: Kotkan Telinevoimistelijat
A19: 15 | B19: 116 | C19: Arttu Kesti | D19: Oulun Pyrintö
A20: 16 | B20: 117 | C20: Konsta Huuki | D20: Oulun Pyrintö
A21: 17 | B21: 118 | C21: Kim Junna | D21: Taipumattomat
A22: 18 | B22: 119 | C22: Mikael Miettinen | D22: Tampereen Sisu
A23: 19 | B23: 120 | C23: Ville Hynninen | D23: Tampereen Sisu
A24: 20 | B24: 121 | C24: Aaron Hotanen | D24: Turun Pyrkivä
A25: 21 | B25: 122 | C25: Oz Ekholm | D25: Turun Pyrkivä
A26: 22 | B26: 123 | C26: Samuel Oporta | D26: Turun Pyrkivä
A27: 23 | B27: 124 | C27: Juho Kanerva | D27: Turun Urheiluliitto
A28: 24 | B28: 125 | C28: Olli Kanerva | D28: Turun Urheiluliitto
A29: 25 | B29: 126 | C29: Sami Aalto | D29: Turun Urheiluliitto
A30: 26 | B30: 127 | C30: Aaro Lamberg | D30: Voimisteluseura Helsinki
A31: 27 | B31: 128 | C31: Jouko Koskinen | D31: Voimisteluseura Helsinki
A32: 28 | B32: 129 | C32: Kasper Holopainen | D32: Voimisteluseura Helsinki
A33: 29 | B33: 130 | C33: Petrus Laulumaa | D33: Voimisteluseura Helsinki
A34: 30 | B34: 131 | C34: Timo Niemelä | D34: Voimisteluseura Helsinki
A35: 31 | B35: 132 | C35: Tomi Tuuha | D35: Voimisteluseura Helsinki
A36: 32 | B36: 133 | C36: Jarkko Pekkanen | D36: Voimisteluseura Keski-Uusimaa

Sheet RekkiT
D1: Suomen mestaruuskilpailut Jyväskylä 17.4.2011
A2: =H3 -> 
A3: Rekki
A4: 0 | B4: Nr | C4: Nimi | D4: Seura | E4: D | F4: väh | G4: E | H4: Yhteensä
A5: 1 | B5: 102 | C5: Heikki Niva | D5: Espoon Telinetaiturit | J5: =IF((H5=H4),IF((H5=0),"","tie"),"") -> 
A6: 2 | B6: 103 | C6: Ilkka Kuusela | D6: Espoon Telinetaiturit
A7: 3 | B7: 104 | C7: Milo Siivonen | D7: Espoon Telinetaiturit
A8: 4 | B8: 105 | C8: Oskar Kirmes | D8: Espoon Telinetaiturit
A9: 5 | B9: 106 | C9: Henrik Petterson | D9: Helsingfors Gymnastikklubb
A10: 6 | B10: 107 | C10: Artturi Lobski | D10: Jyväskylän Voimistelijat
A11: 7 | B11: 108 | C11: Heikki Saarenketo | D11: Jyväskylän Voimistelijat
A12: 8 | B12: 109 | C12: Janne Haapajoki | D12: Jyväskylän Voimistelijat
A13: 9 | B13: 110 | C13: Jarkko Harju | D13: Jyväskylän Voimistelijat
A14: 10 | B14: 111 | C14: Leevi Aihos | D14: Jyväskylän Voimistelijat
A15: 11 | B15: 112 | C15: Pavel Titov | D15: Jyväskylän Voimistelijat
A16: 12 | B16: 113 | C16: Sakari Vekki | D16: Jyväskylän Voimistelijat
A17: 13 | B17: 114 | C17: Jimi Päivänen | D17: Kotkan Telinevoimistelijat
A18: 14 | B18: 115 | C18: Markku Leinonen | D18: Kotkan Telinevoimistelijat
A19: 15 | B19: 116 | C19: Arttu Kesti | D19: Oulun Pyrintö
A20: 16 | B20: 117 | C20: Konsta Huuki | D20: Oulun Pyrintö
A21: 17 | B21: 118 | C21: Kim Junna | D21: Taipumattomat
A22: 18 | B22: 119 | C22: Mikael Miettinen | D22: Tampereen Sisu
A23: 19 | B23: 120 | C23: Ville Hynninen | D23: Tampereen Sisu
A24: 20 | B24: 121 | C24: Aaron Hotanen | D24: Turun Pyrkivä
A25: 21 | B25: 122 | C25: Oz Ekholm | D25: Turun Pyrkivä
A26: 22 | B26: 123 | C26: Samuel Oporta | D26: Turun Pyrkivä
A27: 23 | B27: 124 | C27: Juho Kanerva | D27: Turun Urheiluliitto
A28: 24 | B28: 125 | C28: Olli Kanerva | D28: Turun Urheiluliitto
A29: 25 | B29: 126 | C29: Sami Aalto | D29: Turun Urheiluliitto
A30: 26 | B30: 127 | C30: Aaro Lamberg | D30: Voimisteluseura Helsinki
A31: 27 | B31: 128 | C31: Jouko Koskinen | D31: Voimisteluseura Helsinki
A32: 28 | B32: 129 | C32: Kasper Holopainen | D32: Voimisteluseura Helsinki
A33: 29 | B33: 130 | C33: Petrus Laulumaa | D33: Voimisteluseura Helsinki
A34: 30 | B34: 131 | C34: Timo Niemelä | D34: Voimisteluseura Helsinki
A35: 31 | B35: 132 | C35: Tomi Tuuha | D35: Voimisteluseura Helsinki
A36: 32 | B36: 133 | C36: Jarkko Pekkanen | D36: Voimisteluseura Keski-Uusimaa

Sheet Asetukset
A1: Tällä sivulla on ohjelman asetuksia
A2: Asetuksen selitys | D2: yksikkö | E2: Lisäselitystä
A3: Korostusväri tuloksen näyttämiseksi | C3: 36
A4: Yhteensä perusväri | C4: 12 | E4: #f8cf50 | F4: #eeddff
A5: Perusväri 2 | C5: #F7CE40
A6: D-sarakkeen malli | C6: 9 | E6: #F7CE40 | F6: #ff00ff | H6: R | I6: G | J6: B
H7: 4 | I7: 238 | J7: 254 | K7: =(("#"&DEC2HEX(H7,2))&DEC2HEX(I7,2))&DEC2HEX(J7,2) -> #04EEFE | L7: #04EEFE
A8: Korostus kun tullaan suoritukseen | C8: Saku | H8: 234 | I8: 8 | J8: 24 | K8: =(("#"&DEC2HEX(H8,2))&DEC2HEX(I8,2))&DEC2HEX(J8,2) -> #EA0818 | L8: #EA0818
A9: Automaattiset asetukset | B9: Asetuksen nimi
A10: Tuloksen näyttöaika isona | B10: tuloksennayttoaikaisona | C10: 0 | D10: sek | H10: 234 | I10: 238 | J10: 4 | K10: =(("#"&DEC2HEX(H10,2))&DEC2HEX(I10,2))&DEC2HEX(J10,2) -> #EAEE04 | L10: #EAEE04
A11: Tuloksen näyttöaika lajittelun jälkeen | B11: tuloksennayttoaikalajittelunjalkeen | C11: 0 | D11: sek | H11: 4 | I11: 238 | J11: 24 | K11: =(("#"&DEC2HEX(H11,2))&DEC2HEX(I11,2))&DEC2HEX(J11,2) -> #04EE18 | L11: #04EE18
A12: Näytetäänkö suorittaja otsikossa | B12: suorittajaOtsikossa | C12: 1 | H12: 255 | I12: 154 | J12: 206 | K12: =(("#"&DEC2HEX(H12,2))&DEC2HEX(I12,2))&DEC2HEX(J12,2) -> #FF9ACE
A13: Näytä suorittaja taulukossa | B13: suorittajaTaulukossa | C13: 1
A14: Näytetäänkö finaaliin menijät | B14: naytaFinaaliinMenijat | C14: 1
A15: Kilpailijoita | B15: kilpailijoidenMaara | C15: =COUNTA(Tulokset!C5:C44) -> 32
A16: Finaalissa kilpailijoita | B16: kilpailijoidenMaaraFinaalissa | C16: 6
A17: Finaali | B17: isFinal | C17: 0 | E17: Tähän 1 jos on finaali
A18: Viivoita tausta | B18: viivoitaTausta | C18: 1 | E18: Tähän 1 jos halutaan värjätä tausta joka toinen eri värillä
A19: Lomakkeen korkeus | B19: appHeight | C19: 390
A20: Lomakkeen leveys | B20: appWidth | C20: 340
A22: Muita asetuksia
A23: Kuvatiedoston nimen alku | C23: http://users.jyu.fi/~vesal/kurssit/excel/tuloslaskenta/logot/
A24: Kuvatiedoston nimen loppu | C24: _p.png
E25: =_xll.PISTEET(A25:D25,D24) -> 
A29: Suorituspaikat | C29: Teline | D29: Paikka
A30: Miehet | C30: Permanto | D30: 1
C31: Hevonen | D31: 2
C32: Renkaat | D32: 1
C33: Hyppy | D33: 2
C34: Nojapuut | D34: 1
C35: Rekki | D35: 2
A37: Naiset | C37: Hyppy | D37: 1
C38: Eritasonojapuut | D38: 2
C39: Puomi | D39: 1
C40: Permanto | D40: 2
A44: Nimetyt alueet
D46: Rekki | E46: 2
B48: Naiset | D48: Hyppy | E48: 1
D49: Eritasonojapuut | E49: 2
D50: Puomi | E50: 1
D51: Permanto | E51: 2
B55: Nimetyt alueet
B56: suorittajaOtsikossa | C56: Asetukset!C11
B57: kuvaalku | C57: Asetukset!C21
B58: finaalissaKilpailijoita | C58: Asetukset!C15
B59: finaali | C59: Asetukset!C17
B60: kaavaAlue | C60: Tulokset!E5:P34
B61: korostusvari | C61: Asetukset!C3
B62: tuloksenTaustavari | C62: Asetukset!C4
B63: kilpailijoita | C63: Asetukset!C14
B64: naytaFinaaliinMenijat | C64: Asetukset!C13
B65: tulosalue | C65: Tulokset!A5:R34
B66: tuloksenTaustavari2 | C66: Asetukset!C5
B67: kuvaloppu | C67: Asetukset!C22
B68: DsarakkeenMalli | C68: Asetukset!C6
B69: tuloksennayttoaikaisona | C69: Asetukset!C9
B70: suorituskorostus | C70: Asetukset!C8
B71: tuloksennayttoaikalajittelunjalkeen | C71: Asetukset!C10
B72: viivoitaTausta | C72: Asetukset!C18
B73: suorittajaTaulukossa | C73: Asetukset!C12
B74: appHeight | C74: Asetukset!C19
B75: appWidth | C75: Asetukset!C20
A121: riviä loppuun.
A123: 1
A124: Asetuksen selitys===
A126: ===
A127: Asetuksen selitys
A128: 35
B129: palauta loppu
A130: 5
B131: 1 | C131: 2 | D131: Sami Salo | E131: STV | F131: 3 | G131: 11.15 | H131: 6 | I131: 15.75 | J131: 4 | K131: 10.6 | L131: 2 | M131: 10 | N131: 1 | O131: 9 | P131: 4.9 | Q131: 13.95 | R131: 70.45 | S131: 0
A132: 6
B133: 2 | C133: 8 | D133: Teemu Selänne | E133: HTV | F133: 3 | G133: 12 | H133: 4 | I133: 7 | J133: 2 | K133: 11 | L133: 4 | M133: 13 | N133: 3 | O133: 12 | P133: 5 | Q133: 14.55 | R133: 69.55 | S133: -0.9
A134: 7
B135: 3 | C135: 4 | D135: Ossi Väänänen | E135: KTV | F135: 5 | G135: 12.85 | H135: 2 | I135: 11 | J135: 4 | K135: 13 | L135: 2 | M135: 10 | N135: 1.2 | O135: 10.1 | P135: 2 | Q135: 10.5 | R135: 67.45 | S135: -3
A136: 8
B137: 4 | C137: 1 | D137: Kari Lehtonen | E137: HTV | F137: 3 | G137: 7.5 | H137: 1 | I137: 10 | J137: 2 | K137: 11 | L137: 1 | M137: 10 | N137: 5.2 | O137: 13.9 | P137: 52.4 | Q137: -18.05
A138: 9
B139: 5 | C139: 10 | D139: Toni Rajala | E139: HTV | F139: 6 | G139: 15 | H139: 1 | I139: 10 | J139: 3 | K139: 10 | L139: 3 | M139: 12 | N139: 3 | O139: 12 | P139: 59 | Q139: -11.45
A140: 10
B141: 6 | C141: 22 | D141: Ville Leino | E141: STV | F141: 2.2 | G141: 10.55 | H141: 2 | I141: 11 | J141: 3 | K141: 12 | L141: 6.2 | M141: 15 | N141: 1 | O141: 10 | P141: 58.55 | Q141: -11.9
A142: 11
B143: 7 | C143: 3 | D143: Antti Jaatinen | E143: KTV | F143: 1.7 | G143: 10.05 | H143: 3 | I143: 11 | J143: 1 | K143: 10 | L143: 3.2 | M143: 12.25 | N143: 43.3 | O143: -27.15
A144: 12
B145: 8 | C145: 11 | D145: Saku Koivu | E145: HTV | F145: 4 | G145: 12 | H145: 2 | I145: 9 | J145: 4 | K145: 13 | L145: 1 | M145: 8 | N145: 42 | O145: -28.45
A146: 13
B147: 9 | C147: 12 | D147: Jani Tuppurainen | E147: Jyvo | F147: 2 | G147: 10.4 | H147: 1 | I147: 9.9 | J147: 1 | K147: 9 | L147: 1 | M147: 10 | N147: 39.3 | O147: -31.15
A148: 14
B149: 10 | C149: 15 | D149: Juha-Pekka Hytönen | E149: Jyvo | F149: 2 | G149: 10.35 | H149: 2 | I149: 8.75 | J149: 1 | K149: 10 | L149: 1 | M149: 9 | N149: 38.1 | O149: -32.35
A150: 15
B151: 11 | C151: 6 | D151: Teemu Pulkkinen | E151: TTV | F151: 5 | G151: 13.35 | H151: 2 | I151: 11 | J151: 2 | K151: 11 | L151: 35.35 | M151: -35.1
A152: 16
B153: 12 | C153: 23 | D153: Ossi Louhivaara | E153: Jyvo | F153: 1.8 | G153: 9.8 | H153: 4 | I153: 11.85 | J153: 2 | K153: 11 | L153: 32.65 | M153: -37.8
A154: 17
B155: 13 | C155: 17 | D155: Jari Jääskeläinen | E155: Jyvo | F155: 1.8 | G155: 9.75 | H155: 2 | I155: 9.6 | J155: 4.5 | K155: 12.75 | L155: 32.1 | M155: -38.35
A156: 18
B157: 14 | C157: 14 | D157: Pekka Jormakka | E157: Jyvo | F157: 2.4 | G157: 10.75 | H157: 1.1 | I157: 8.6 | J157: 2 | K157: 10.9 | L157: 30.25 | M157: -40.2
A158: 19
B159: 15 | C159: 16 | D159: Ville Peltonen | E159: HTV | F159: 1.7 | G159: 9.9 | H159: 2 | I159: 10.6 | J159: 1 | K159: 9 | L159: 29.5 | M159: -40.95
A160: 20
B161: 16 | C161: 29 | D161: Petteri Nokelainen | E161: KTV | F161: 2.6 | G161: 11.15 | H161: 1 | I161: 9.9 | J161: 21.05 | K161: -49.4
A162: 21
B163: 17 | C163: 21 | D163: Teemu Eronen | E163: HTV | F163: 1.8 | G163: 9.8 | H163: 2 | I163: 11 | J163: 20.8 | K163: -49.65
A164: 22
B165: 18 | C165: 27 | D165: Juha Lind | E165: STV | F165: 2.2 | G165: 10.15 | H165: 1 | I165: 9 | J165: 19.15 | K165: -51.3
A166: 23
B167: 19 | C167: 41 | D167: Antti Pihlström | E167: Jyvo | F167: 1.8 | G167: 5 | H167: 14 | I167: 14 | J167: -56.45
A168: 24
B169: 20 | C169: 40 | D169: Sami Lepistö | E169: KTV | F169: 2.6 | G169: 1 | H169: 11 | I169: 11 | J169: -59.45
A170: 25
B171: 21 | C171: 36 | D171: Marko Tuulola | E171: KTV | F171: 2.9 | G171: 2 | H171: 11 | I171: 11 | J171: -59.45
A172: 26
B173: 22 | C173: 58 | D173: Nico Manelius | E173: KTV | F173: 2.3 | G173: 2 | H173: 11 | I173: 11 | J173: -59.45
A174: 27
B175: 23 | C175: 50 | D175: Tommi Kivistö | E175: KTV | F175: 2.1 | G175: 2 | H175: 11 | I175: 11 | J175: -59.45
A176: 28
B177: 24 | C177: 28 | D177: Jani Rita | E177: HYV | F177: 2.2 | G177: 10.5 | H177: 10.5 | I177: -59.95
A178: 29
B179: 25 | C179: 25 | D179: Jukka Hentunen | E179: HTV | F179: 1.7 | G179: 9.95 | H179: 9.95 | I179: -60.5
A180: 30
B181: 26 | C181: 35 | D181: Mika Järvinen | E181: KTV | F181: 2.6 | G181: 1 | H181: 9.9 | I181: 9.9 | J181: -60.55
A182: 31
B183: 27 | C183: 44 | D183: Sami Vatanen | E183: Jyvo | F183: 1.6 | G183: 0 | H183: -70.45
A184: 32
B185: 28 | C185: 47 | D185: Janne Lahti | E185: Jyvo | F185: 2 | G185: 0 | H185: -70.45
A186: 33
B187: 29 | C187: 49 | D187: Tuomas Pihlman | E187: Jokerit | F187: 2.2 | G187: 0 | H187: -70.45
A188: 34
B189: 30 | C189: 64 | D189: Mikael Granlund | E189: HIFK | F189: 2.6 | G189: 0 | H189: -70.45
A190: 35
B191: palauta loppu
A192: 10
B193: Tuloksen näyttöaika lajittelun jälkeen | C193: tuloksennayttoaikalajittelunjalkeen | D193: 0 | E193: sek | F193: 4 | G193: 238 | H193: 24 | I193: #04EE18 | J193: #04EE18
A194: 35
B195: palauta loppu
A196: 35
B197: palauta loppu
A198: 1
B199: 8 | C199: Teemu Selänne | D199: HTV | E199: 3 | F199: 12
A200: 2
B201: Permanto
A202: 3
B203: 0 | C203: Nr | D203: Nimi | E203: Seura | F203: D | G203: väh | H203: E | I203: Yhteensä
A204: 4
B205: 1 | C205: 10 | D205: Toni Rajala | E205: 3 | F205: 0 | G205: 9 | H205: 12
A206: 5
B207: 2 | C207: 8 | D207: Teemu Selänne | E207: 3 | F207: 0 | G207: 9 | H207: 12
A208: 6
B209: 3 | C209: 11 | D209: Saku Koivu | E209: 4 | F209: 1 | G209: 9 | H209: 12
A210: 7
B211: 4 | C211: 22 | D211: Ville Leino | E211: 2.2 | F211: 0.4 | G211: 8.75 | H211: 10.55
A212: 8
B213: 5 | C213: 1 | D213: Kari Lehtonen
A214: 9
B215: 6 | C215: 12 | D215: Jani Tuppurainen
A216: 10
B217: 7 | C217: 2 | D217: Sami Salo
A218: 11
B219: 8 | C219: 15 | D219: Juha-Pekka Hytönen
A220: 13
B221: 2 | C221: Sami Salo | D221: STV | E221: 6 | F221: 15.75
A222: 14
B223: Hevonen
A224: 15
B225: 0 | C225: Nr | D225: Nimi | E225: Seura | F225: D | G225: väh | H225: E | I225: Yhteensä
A226: 16
B227: 1 | C227: 2 | D227: Sami Salo | E227: 6 | F227: 0 | G227: 9.75 | H227: 15.75
A228: 17
B229: 2 | C229: 22 | D229: Ville Leino | E229: 2 | F229: 0 | G229: 9 | H229: 11
A230: 18
B231: 3 | C231: 10 | D231: Toni Rajala | E231: 1 | F231: 0 | G231: 9 | H231: 10
A232: 19
B233: 4 | C233: 1 | D233: Kari Lehtonen | E233: 1 | F233: 0 | G233: 9 | H233: 10 | I233: tie
A234: 20
B235: 5 | C235: 12 | D235: Jani Tuppurainen
A236: 21
B237: 6 | C237: 11 | D237: Saku Koivu
A238: 22
B239: 7 | C239: 8 | D239: Teemu Selänne
A240: 23
B241: 8 | C241: 15 | D241: Juha-Pekka Hytönen
A242: 35
B243: palauta loppu
A244: 34
B245: 6056
A246: Alueen nimet
A247: Lempinimi: | B247: Ohje
C248: ×
C249: ×
C250: ×
C251: ×
C252: ×
C253: ×
C254: ×
C255: ×
C256: ×
C257: ×
C258: ×
C259: ×
C260: ×
... 7 more rows

Sheet Tulostus
D1: Suomen mestaruuskilpailut Jyväskylä 17.4.2011
A3: Miesten 6-ottelu | E3: Permanto | F3: =Permanto!$M$1 ->  | G3: Hevonen | H3: =Hevonen!$M$1 ->  | I3: Renkaat | J3: =Renkaat!$M$1 ->  | K3: Hyppy | L3: =Hyppy!$M$1 ->  | M3: Nojapuut | N3: =Nojapuut!$M$1 ->  | O3: Rekki | P3: =Rekki!$M$1 -> 
A4: 0 | B4: Nr | C4: Nimi | D4: Seura | E4: D | F4: yht | G4: D | H4: yht | I4: D | J4: yht | K4: D | L4: yht | M4: D | N4: yht | O4: D | P4: yht | Q4: Yhteensä
A5: 1 | B5: 102 | C5: Heikki Niva | D5: Espoon Telinetaiturit | E5: 2.5 | F5: 10.65 | G5: 2 | H5: 8 | I5: 2 | J5: 9.6 | K5: 1 | L5: 10 | M5: 1 | N5: 9 | O5: 4.9 | P5: 13.95 | Q5: 61.2
A6: 2 | B6: 103 | C6: Ilkka Kuusela | D6: Espoon Telinetaiturit | E6: 1.9 | F6: 9.75 | G6: 1 | H6: 10.7 | K6: 1 | L6: 10 | M6: 1.2 | N6: 10.1 | O6: 2 | P6: 10.5 | Q6: 51.05
A7: 3 | B7: 104 | C7: Milo Siivonen | D7: Espoon Telinetaiturit | E7: 2 | F7: 9.65 | I7: 9 | J7: 17 | K7: 2 | L7: 10 | O7: 3 | P7: 12 | Q7: 48.65
A8: 4 | B8: 105 | C8: Oskar Kirmes | D8: Espoon Telinetaiturit | E8: 2.5 | F8: 10.25 | G8: 2 | H8: 9 | I8: 2 | J8: 9 | K8: 3.2 | L8: 11 | O8: 1 | P8: 8 | Q8: 47.25
A9: 5 | B9: 106 | C9: Henrik Petterson | D9: Helsingfors Gymnastikklubb | E9: 2.3 | F9: 10.7 | I9: 2 | J9: 11 | K9: 1 | L9: 9.95 | O9: 5 | P9: 14.55 | Q9: 46.2
A10: 6 | B10: 107 | C10: Artturi Lobski | D10: Jyväskylän Voimistelijat | E10: 1.8 | F10: 10.1 | G10: 3 | H10: 12.7 | K10: 1 | L10: 10 | O10: 3.2 | P10: 12.25 | Q10: 45.05
A11: 7 | B11: 108 | C11: Heikki Saarenketo | D11: Jyväskylän Voimistelijat | E11: 2.4 | F11: 12.05 | I11: 1 | J11: 10 | K11: 1 | L11: 9 | O11: 1 | P11: 10 | Q11: 41.05
A12: 8 | B12: 109 | C12: Janne Haapajoki | D12: Jyväskylän Voimistelijat | E12: 3 | F12: 11.2 | G12: 1 | H12: 10 | O12: 5.2 | P12: 13.9 | Q12: 35.1
A13: 9 | B13: 110 | C13: Jarkko Harju | D13: Jyväskylän Voimistelijat | E13: 5 | F13: 13.35 | G13: 1 | H13: 10.7 | M13: 2 | N13: 11 | Q13: 35.05
A14: 10 | B14: 111 | C14: Leevi Aihos | D14: Jyväskylän Voimistelijat | E14: 1.8 | F14: 10 | I14: 2 | J14: 10.6 | M14: 1 | N14: 9 | Q14: 29.6
A15: 11 | B15: 112 | C15: Pavel Titov | D15: Jyväskylän Voimistelijat | E15: 2.2 | I15: 4 | J15: 13 | M15: 1 | N15: 10.00088922 | Q15: 23.00088922
A16: 12 | B16: 113 | C16: Sakari Vekki | D16: Jyväskylän Voimistelijat | E16: 1.8 | I16: 2 | J16: 9.6 | O16: 4.5 | P16: 12.75080905 | Q16: 22.35080905
A17: 13 | B17: 114 | C17: Jimi Päivänen | D17: Kotkan Telinevoimistelijat | E17: 2.4 | F17: 10.75 | I17: 1.1 | J17: 8.6 | K17: 2 | Q17: 19.35
A18: 14 | B18: 115 | C18: Markku Leinonen | D18: Kotkan Telinevoimistelijat | E18: 2.1 | I18: 2 | J18: 8.85 | M18: 1 | N18: 9 | Q18: 17.85
A19: 15 | B19: 116 | C19: Arttu Kesti | D19: Oulun Pyrintö | E19: 1.8 | M19: 5 | N19: 14 | Q19: 14
A20: 16 | B20: 117 | C20: Konsta Huuki | D20: Oulun Pyrintö | E20: 2.6 | F20: 11.15 | Q20: 11.15
A21: 17 | B21: 118 | C21: Kim Junna | D21: Taipumattomat | E21: 2.6 | O21: 1 | P21: 11.00099999 | Q21: 11.00099999
A22: 18 | B22: 119 | C22: Mikael Miettinen | D22: Tampereen Sisu | E22: 2.3 | O22: 2 | P22: 11.00089264 | Q22: 11.00089264
A23: 19 | B23: 120 | C23: Ville Hynninen | D23: Tampereen Sisu | E23: 2.1 | O23: 2 | P23: 11.00089261 | Q23: 11.00089261
A24: 20 | B24: 121 | C24: Aaron Hotanen | D24: Turun Pyrkivä | E24: 2.9 | O24: 2 | P24: 11.00088922 | Q24: 11.00088922
A25: 21 | B25: 122 | C25: Oz Ekholm | D25: Turun Pyrkivä | E25: 1.8 | M25: 2 | N25: 11.00088922 | Q25: 11.00088922
A26: 22 | B26: 123 | C26: Samuel Oporta | D26: Turun Pyrkivä | E26: 2.2 | M26: 1 | N26: 9 | Q26: 9
A27: 23 | B27: 124 | C27: Juho Kanerva | D27: Turun Urheiluliitto | E27: 2.2 | Q27: 0
A28: 24 | B28: 125 | C28: Olli Kanerva | D28: Turun Urheiluliitto | E28: 2.1 | Q28: 0
A29: 25 | B29: 126 | C29: Sami Aalto | D29: Turun Urheiluliitto | E29: 2 | Q29: 0
A30: 26 | B30: 127 | C30: Aaro Lamberg | D30: Voimisteluseura Helsinki | E30: 2.6 | Q30: 0
A31: 27 | B31: 128 | C31: Jouko Koskinen | D31: Voimisteluseura Helsinki | E31: 2.6 | Q31: 0
A32: 28 | B32: 129 | C32: Kasper Holopainen | D32: Voimisteluseura Helsinki
A33: 29 | B33: 130 | C33: Petrus Laulumaa | D33: Voimisteluseura Helsinki | E33: 1.6 | Q33: 0
A34: 30 | B34: 131 | C34: Timo Niemelä | D34: Voimisteluseura Helsinki
A35: 31 | B35: 132 | C35: Tomi Tuuha | D35: Voimisteluseura Helsinki | E35: 1.7 | Q35: 0
A36: 32 | B36: 133 | C36: Jarkko Pekkanen | D36: Voimisteluseura Keski-Uusimaa | E36: 1.8 | Q36: 0
